Workbook

Sheet Clavet
A1: =Kerrobert!A1 -> Group: Global WYAMZ - Monthly Monthly: 01/2019 Type: AVG 1 Hr.
A3: Date & Time | B3: Unity | C3: Unity | D3: Unity | E3: Unity | F3: Unity | G3: Unity | H3: Unity | I3: Unity | J3: Unity | K3: Unity
B4: NO | C4: NO2 | D4: NOX | E4: O3 | F4: PM25 | G4: PRECIP | H4: TEMPERAT | I4: WS | J4: WD | K4: RH
B5: ppb | C5: ppb | D5: ppb | E5: ppb | F5: ug/m3(L) | G5: mm | H5: C° | I5: m/s | J5: Deg | K5: %RH
A6: 2019/01/01 01:00:00 | B6: 3.939 | C6: 7.39 | D6: 11.329 | E6: 20.504 | F6: 11.818 | G6: 0 | H6: -24.601 | I6: 0.456 | J6: 180.034 | K6: 68.329
A7: 2019/01/01 02:00:00 | B7: 2.807 | C7: 12.352 | D7: 15.16 | E7: 15.232 | F7: 6.176 | G7: 0 | H7: -24.268 | I7: 0.303 | J7: 139.741 | K7: 66.115
A8: 2019/01/01 03:00:00 | B8: 1.666 | C8: 8.172 | D8: 9.841 | E8: 17.282 | F8: 6.293 | G8: 0 | H8: -24.564 | I8: 0.583 | J8: 112.895 | K8: 66.356
A9: 2019/01/01 04:00:00 | B9: 1.267 | C9: 6.285 | D9: 7.554 | E9: 18.991 | F9: 4.44 | G9: 0 | H9: -24.236 | I9: 0.68 | J9: 113.601 | K9: 68.022
A10: 2019/01/01 05:00:00 | B10: 1.634 | C10: 7.496 | D10: 9.131 | E10: 18.407 | F10: 4.286 | G10: 0 | H10: -24.376 | I10: 0.827 | J10: 93.223 | K10: 67.389
A11: 2019/01/01 06:00:00 | B11: 1.658 | C11: 8.425 | D11: 10.084 | E11: 17.425 | F11: 4.336 | G11: 0 | H11: -22.758 | I11: 0.546 | J11: 92.665 | K11: 67.847
A12: 2019/01/01 07:00:00 | B12: 2.401 | C12: 4.021 | D12: 6.424 | E12: 20.046 | F12: 5.17 | G12: 0 | H12: -17.784 | I12: 1.82 | J12: 190.991 | K12: 70.432
A13: 2019/01/01 08:00:00 | B13: 2.018 | C13: 2.201 | D13: 4.221 | E13: 21.453 | F13: 5.111 | G13: 0 | H13: -15.958 | I13: 2.954 | J13: 185.626 | K13: 68.8
A14: 2019/01/01 09:00:00 | B14: 1.937 | C14: 2.05 | D14: 3.988 | E14: 23.273 | F14: 5.807 | G14: 0 | H14: -13.854 | I14: 3.032 | J14: 178.91 | K14: 66.184
A15: 2019/01/01 10:00:00 | B15: 0.418 | C15: 1.533 | D15: 1.953 | E15: 24.174 | F15: 5.631 | G15: 0 | H15: -12.556 | I15: 3.713 | J15: 187.515 | K15: 63.923
A16: 2019/01/01 11:00:00 | B16: 1.974 | C16: 1.955 | D16: 3.931 | E16: 24.138 | F16: 4.49 | G16: 0 | H16: -12.163 | I16: 3.547 | J16: 189.344 | K16: 66.035
A17: 2019/01/01 12:00:00 | B17: 1.695 | C17: 1.903 | D17: 3.601 | E17: 25.522 | F17: 3.883 | G17: 0 | H17: -11.019 | I17: 3.679 | J17: 195.409 | K17: 66.883
A18: 2019/01/01 13:00:00 | B18: Z | C18: Z | D18: Z | E18: Z | F18: 3.573 | G18: 0 | H18: -10.122 | I18: 3.627 | J18: 197.333 | K18: 72
A19: 2019/01/01 14:00:00 | B19: 1.972 | C19: 2.346 | D19: 4.32 | E19: 28.035 | F19: 3.034 | G19: 0 | H19: -8.226 | I19: 4.109 | J19: 210.252 | K19: 74.689
A20: 2019/01/01 15:00:00 | B20: 0.506 | C20: 0.976 | D20: 1.483 | E20: 15.577 | F20: 1.578 | G20: 0 | H20: -3.552 | I20: 1.84 | J20: 235.12 | K20: 40.398
A21: 2019/01/01 16:00:00 | B21: 1.464 | C21: 2.639 | D21: 4.103 | E21: 29.936 | F21: 3.323 | G21: 0 | H21: -4.826 | I21: 2.846 | J21: 235.112 | K21: 69.887
A22: 2019/01/01 17:00:00 | B22: 0.954 | C22: 5.039 | D22: 5.994 | E22: 28.817 | F22: 3.306 | G22: 0 | H22: -4.36 | I22: 2.164 | J22: 234.012 | K22: 70.114
A23: 2019/01/01 18:00:00 | B23: 4.072 | C23: 5.965 | D23: 10.038 | E23: 29.462 | F23: 4.376 | G23: 0 | H23: -3.592 | I23: 2.294 | J23: 247.468 | K23: 70.423
A24: 2019/01/01 19:00:00 | B24: 0.252 | C24: 4.947 | D24: 5.202 | E24: 30.084 | F24: 4.404 | G24: 0 | H24: -4.956 | I24: 1.67 | J24: 231.694 | K24: 73.175
A25: 2019/01/01 20:00:00 | B25: 5.42 | C25: 7.369 | D25: 12.789 | E25: 29.428 | F25: 3.388 | G25: 0 | H25: -5.009 | I25: 1.245 | J25: 246.311 | K25: 75.261
A26: 2019/01/01 21:00:00 | B26: 2.161 | C26: 6.853 | D26: 9.015 | E26: 29.182 | F26: 3.296 | G26: 0 | H26: -5.908 | I26: 1.054 | J26: 222.305 | K26: 74.378
A27: 2019/01/01 22:00:00 | B27: 3.348 | C27: 7.951 | D27: 11.3 | E27: 29.07 | F27: 2.733 | G27: 0 | H27: -6.099 | I27: 1.548 | J27: 233.703 | K27: 75.987
A28: 2019/01/01 23:00:00 | B28: 0.486 | C28: 2.603 | D28: 3.088 | E28: 33.883 | F28: 1.549 | G28: 0 | H28: -5.246 | I28: 1.594 | J28: 250.944 | K28: 73.396
A29: 2019/01/02 00:00:00 | B29: 5.053 | C29: 5.319 | D29: 10.372 | E29: 32.165 | F29: 1.852 | G29: 0 | H29: -5.663 | I29: 1.55 | J29: 253.982 | K29: 74.407
A30: 2019/01/02 01:00:00 | B30: 0.483 | C30: 2.985 | D30: 3.467 | E30: 32.824 | F30: 3.26 | G30: 0 | H30: -5.568 | I30: 2.385 | J30: 247.98 | K30: 75.019
A31: 2019/01/02 02:00:00 | B31: 3.931 | C31: 4.446 | D31: 8.377 | E31: 32.644 | F31: 3.012 | G31: 0 | H31: -5.451 | I31: 2.828 | J31: 251.9 | K31: 74.578
A32: 2019/01/02 03:00:00 | B32: 0.224 | C32: 2.373 | D32: 2.597 | E32: 32.699 | F32: 3.389 | G32: 0 | H32: -5.718 | I32: 2.03 | J32: 258.356 | K32: 74.216
A33: 2019/01/02 04:00:00 | B33: 3.591 | C33: 5.687 | D33: 9.277 | E33: 30.263 | F33: 5.151 | G33: 0 | H33: -6.882 | I33: 2.03 | J33: 255.702 | K33: 75.941
A34: 2019/01/02 05:00:00 | B34: 3.554 | C34: 9.457 | D34: 13.01 | E34: 25.505 | F34: 5.54 | G34: 0 | H34: -8.392 | I34: 1.245 | J34: 246.964 | K34: 77.035
A35: 2019/01/02 06:00:00 | B35: 2.086 | C35: 8.665 | D35: 10.75 | E35: 23.162 | F35: 5.613 | G35: 0 | H35: -10.625 | I35: 1.028 | J35: 194.63 | K35: 76.893
A36: 2019/01/02 07:00:00 | B36: 2.261 | C36: 8.901 | D36: 11.161 | E36: 23.556 | F36: 4.901 | G36: 0 | H36: -12.24 | I36: 1.025 | J36: 181.868 | K36: 76.67
A37: 2019/01/02 08:00:00 | B37: 0.465 | C37: 3.777 | D37: 4.241 | E37: 27.804 | F37: 4.949 | G37: 0 | H37: -10.607 | I37: 2.29 | J37: 211.07 | K37: 79.29
A38: 2019/01/02 09:00:00 | B38: 2.686 | C38: 5.028 | D38: 7.714 | E38: 27.278 | F38: 3.644 | G38: 0 | H38: -9.753 | I38: 1.914 | J38: 198.287 | K38: 79.397
A39: 2019/01/02 10:00:00 | B39: 1.256 | C39: 4.018 | D39: 5.272 | E39: 26.987 | F39: 4.199 | G39: 0 | H39: -7.452 | I39: 1.999 | J39: 203.627 | K39: 79.233
A40: 2019/01/02 11:00:00 | B40: 1.101 | C40: 3.45 | D40: 4.549 | E40: 26.732 | F40: 4.114 | G40: 0 | H40: -5.708 | I40: 1.72 | J40: 201.084 | K40: 78.802
A41: 2019/01/02 12:00:00 | B41: Z | C41: Z | D41: Z | E41: Z | F41: 3.93 | G41: 0 | H41: -2.761 | I41: 3.058 | J41: 204.017 | K41: 77.86
A42: 2019/01/02 13:00:00 | B42: 1.815 | C42: 3.367 | D42: 5.181 | E42: 25.364 | F42: 2.885 | G42: 0 | H42: -0.82 | I42: 2.995 | J42: 208.518 | K42: 74.698
A43: 2019/01/02 14:00:00 | B43: 2.401 | C43: 3.2 | D43: 5.599 | E43: 26.124 | F43: 2.808 | G43: 0 | H43: 1.286 | I43: 3.036 | J43: 209.065 | K43: 71.433
A44: 2019/01/02 15:00:00 | B44: 2.795 | C44: 4.638 | D44: 7.431 | E44: 26.639 | F44: 2.981 | G44: 0 | H44: 2.476 | I44: 2.846 | J44: 210.996 | K44: 70.099
A45: 2019/01/02 16:00:00 | B45: 1.522 | C45: 2.745 | D45: 4.266 | E45: 28.901 | F45: 3.143 | G45: 0 | H45: 2.9 | I45: 2.235 | J45: 218.322 | K45: 67.218
A46: 2019/01/02 17:00:00 | B46: 4.018 | C46: 4.584 | D46: 8.602 | E46: 25.597 | F46: 2.798 | G46: 0 | H46: 2.911 | I46: 2.581 | J46: 210.938 | K46: 70.16
A47: 2019/01/02 18:00:00 | B47: 1.107 | C47: 3.773 | D47: 4.879 | E47: 26.127 | F47: 2.747 | G47: 0 | H47: 2.784 | I47: 2.621 | J47: 213.781 | K47: 70.57
A48: 2019/01/02 19:00:00 | B48: 0.974 | C48: 4.449 | D48: 5.422 | E48: 26.008 | F48: 2.864 | G48: 0 | H48: 2.251 | I48: 1.918 | J48: 218.324 | K48: 72.493
A49: 2019/01/02 20:00:00 | B49: 0.805 | C49: 3.848 | D49: 4.652 | E49: 25.411 | F49: 3.063 | G49: 0 | H49: 1.94 | I49: 1.743 | J49: 211.18 | K49: 73.539
A50: 2019/01/02 21:00:00 | B50: 0.305 | C50: 3.238 | D50: 3.543 | E50: 25.469 | F50: 2.726 | G50: 0 | H50: 1.562 | I50: 1.977 | J50: 209.955 | K50: 74.7
A51: 2019/01/02 22:00:00 | B51: 0.468 | C51: 3.792 | D51: 4.259 | E51: 24.588 | F51: 2.697 | G51: 0 | H51: 0.935 | I51: 2.067 | J51: 209.717 | K51: 75.838
A52: 2019/01/02 23:00:00 | B52: 0.37 | C52: 3.245 | D52: 3.613 | E52: 24.021 | F52: 2.821 | G52: 0 | H52: 0.197 | I52: 2.291 | J52: 208.173 | K52: 76.821
A53: 2019/01/03 00:00:00 | B53: 0.699 | C53: 2.949 | D53: 3.649 | E53: 22.898 | F53: 10.756 | G53: 0 | H53: 0.178 | I53: 1.97 | J53: 199.925 | K53: 76.966
A54: 2019/01/03 01:00:00 | B54: 1.074 | C54: 4.167 | D54: 5.24 | E54: 23.419 | F54: 12.355 | G54: 0 | H54: 0.964 | I54: 2.613 | J54: 209.389 | K54: 75.461
A55: 2019/01/03 02:00:00 | B55: 0.721 | C55: 3.776 | D55: 4.496 | E55: 23.861 | F55: 11.165 | G55: 0 | H55: 1.23 | I55: 2.476 | J55: 221.695 | K55: 75.466
A56: 2019/01/03 03:00:00 | B56: 1.579 | C56: 5.748 | D56: 7.326 | E56: 21.975 | F56: 10.37 | G56: 0 | H56: 1.468 | I56: 2.262 | J56: 218.234 | K56: 75.146
A57: 2019/01/03 04:00:00 | B57: 0.987 | C57: 3.606 | D57: 4.592 | E57: 22.348 | F57: 9.865 | G57: 0 | H57: 1.576 | I57: 2.066 | J57: 212.861 | K57: 74.539
A58: 2019/01/03 05:00:00 | B58: 0.073 | C58: 2.187 | D58: 2.259 | E58: 23.189 | F58: 8.828 | G58: 0 | H58: 1.06 | I58: 2.16 | J58: 208.771 | K58: 75.161
A59: 2019/01/03 06:00:00 | B59: 0.845 | C59: 3.57 | D59: 4.415 | E59: 21.831 | F59: 7.75 | G59: 0 | H59: 0.193 | I59: 2.149 | J59: 206.474 | K59: 75.478
A60: 2019/01/03 07:00:00 | B60: 0.628 | C60: 2.442 | D60: 3.069 | E60: 21.922 | F60: 6.442 | G60: 0 | H60: -1.065 | I60: 2.485 | J60: 208.15 | K60: 76.976
A61: 2019/01/03 08:00:00 | B61: 1.488 | C61: 3.985 | D61: 5.472 | E61: 21.011 | F61: 6.008 | G61: 0 | H61: -2.395 | I61: 2.189 | J61: 212.597 | K61: 78.153
A62: 2019/01/03 09:00:00 | B62: 1.278 | C62: 2.929 | D62: 4.207 | E62: 22.713 | F62: 5.582 | G62: 0 | H62: -1.924 | I62: 2.113 | J62: 220.203 | K62: 76.968
A63: 2019/01/03 10:00:00 | B63: 3.495 | C63: 5.986 | D63: 9.481 | E63: 20.077 | F63: 6.01 | G63: 0 | H63: -2.506 | I63: 1.579 | J63: 217.793 | K63: 76.726
A64: 2019/01/03 11:00:00 | B64: Z | C64: Z | D64: Z | E64: Z | F64: 6.355 | G64: 0 | H64: -2.681 | I64: 1.314 | J64: 215.157 | K64: 74.623
A65: 2019/01/03 12:00:00 | B65: 2.169 | C65: 3.194 | D65: 5.362 | E65: 21.424 | F65: 6.028 | G65: 0 | H65: -1.633 | I65: 1.759 | J65: 207.605 | K65: 70.183
A66: 2019/01/03 13:00:00 | B66: 2.755 | C66: 3.894 | D66: 6.65 | E66: 24.084 | F66: 6.007 | G66: 0 | H66: 0.869 | I66: 1.754 | J66: 240.18 | K66: 67.032
A67: 2019/01/03 14:00:00 | B67: 4.171 | C67: 4.783 | D67: 8.956 | E67: 26.442 | F67: 5.11 | G67: 0 | H67: 2.689 | I67: 1.919 | J67: 232.837 | K67: 64.112
A68: 2019/01/03 15:00:00 | B68: 2.897 | C68: 4.426 | D68: 7.324 | E68: 24.392 | F68: 4.381 | G68: 0 | H68: 2.005 | I68: 1.654 | J68: 208.301 | K68: 65.468
A69: 2019/01/03 16:00:00 | B69: 4.117 | C69: 5.569 | D69: 9.686 | E69: 23.761 | F69: 5.292 | G69: 0 | H69: 2.24 | I69: 1.498 | J69: 204.629 | K69: 64.534
A70: 2019/01/03 17:00:00 | B70: 1.862 | C70: 5.783 | D70: 7.645 | E70: 24.661 | F70: 5.08 | G70: 0 | H70: 1.172 | I70: 1.73 | J70: 210.725 | K70: 67.609
A71: 2019/01/03 18:00:00 | B71: 0.825 | C71: 5.336 | D71: 6.161 | E71: 24.187 | F71: 6.007 | G71: 0 | H71: 0.045 | I71: 1.336 | J71: 210.995 | K71: 71.424
A72: 2019/01/03 19:00:00 | B72: 1.034 | C72: 5.683 | D72: 6.717 | E72: 22.897 | F72: 7.034 | G72: 0 | H72: -1.144 | I72: 1.726 | J72: 204.382 | K72: 73.836
A73: 2019/01/03 20:00:00 | B73: 2.849 | C73: 8.265 | D73: 11.114 | E73: 20.058 | F73: 7.852 | G73: 0 | H73: -3 | I73: 1.383 | J73: 201.729 | K73: 77.242
A74: 2019/01/03 21:00:00 | B74: 2.662 | C74: 8.732 | D74: 11.393 | E74: 18.678 | F74: 7.634 | G74: 0 | H74: -2.966 | I74: 1.299 | J74: 209.373 | K74: 77.195
A75: 2019/01/03 22:00:00 | B75: 2.907 | C75: 7.817 | D75: 10.724 | E75: 19.08 | F75: 7.384 | G75: 0 | H75: -3.082 | I75: 1.454 | J75: 206.098 | K75: 78.299
A76: 2019/01/03 23:00:00 | B76: 1.19 | C76: 7.736 | D76: 8.926 | E76: 17.84 | F76: 7.617 | G76: 0 | H76: -2.722 | I76: 0.57 | J76: 200.797 | K76: 76.36
A77: 2019/01/04 00:00:00 | B77: 3.847 | C77: 9.929 | D77: 13.776 | E77: 14.458 | F77: 7.195 | G77: 0 | H77: -4.324 | I77: 0.898 | J77: 185.028 | K77: 78.716
A78: 2019/01/04 01:00:00 | B78: 1.484 | C78: 8.608 | D78: 10.093 | E78: 14.701 | F78: 7.474 | G78: 0 | H78: -4.667 | I78: 0.319 | J78: 245.062 | K78: 78.71
A79: 2019/01/04 02:00:00 | B79: 2.887 | C79: 9.426 | D79: 12.314 | E79: 14.195 | F79: 8.97 | G79: 0 | H79: -5.034 | I79: 0.396 | J79: 251.638 | K79: 77.794
A80: 2019/01/04 03:00:00 | B80: 1.104 | C80: 10.702 | D80: 11.805 | E80: 9.954 | F80: 9.724 | G80: 0 | H80: -5.747 | I80: 0.274 | J80: 301.593 | K80: 77.929
A81: 2019/01/04 04:00:00 | B81: 1.543 | C81: 13.772 | D81: 15.316 | E81: 6.339 | F81: 10.037 | G81: 0 | H81: -5.287 | I81: 0.066 | J81: 180.715 | K81: 74.385
A82: 2019/01/04 05:00:00 | B82: 3.172 | C82: 14.506 | D82: 17.678 | E82: 3.917 | F82: 10.274 | G82: 0 | H82: -5.72 | I82: 0.191 | J82: 189.595 | K82: 75.472
A83: 2019/01/04 06:00:00 | B83: 6.097 | C83: 10.5 | D83: 16.597 | E83: 6.388 | F83: 10.278 | G83: 0 | H83: -6.526 | I83: 0.555 | J83: 180.457 | K83: 75.085
A84: 2019/01/04 07:00:00 | B84: 1.742 | C84: 6.726 | D84: 8.468 | E84: 10.267 | F84: 12.586 | G84: 0 | H84: -7.894 | I84: 0.751 | J84: 190.53 | K84: 77.595
A85: 2019/01/04 08:00:00 | B85: 2.54 | C85: 12.331 | D85: 14.872 | E85: 7.727 | F85: 12.84 | G85: 0 | H85: -7.86 | I85: 0.324 | J85: 47.877 | K85: 76.88
A86: 2019/01/04 09:00:00 | B86: 12.664 | C86: 15.954 | D86: 28.619 | E86: 2.787 | F86: 11.486 | G86: 0 | H86: -8.014 | I86: 0.117 | J86: 83.837 | K86: 74.932
A87: 2019/01/04 10:00:00 | B87: Z | C87: Z | D87: Z | E87: Z | F87: 10.149 | G87: 0 | H87: -7.31 | I87: 0.404 | J87: 141.171 | K87: 74.762
A88: 2019/01/04 11:00:00 | B88: 6.371 | C88: 11.769 | D88: 18.14 | E88: 8.276 | F88: 13.932 | G88: 0 | H88: -6.505 | I88: 0.705 | J88: 91.992 | K88: 78.24
A89: 2019/01/04 12:00:00 | B89: 5.872 | C89: 9.699 | D89: 15.572 | E89: 11.965 | F89: 14.578 | G89: 0 | H89: -5.066 | I89: 1.163 | J89: 61.751 | K89: 79.253
A90: 2019/01/04 13:00:00 | B90: 4.862 | C90: 9.961 | D90: 14.824 | E90: 15.472 | F90: 13.455 | G90: 0 | H90: -3.582 | I90: 1.309 | J90: 63.948 | K90: 77.389
A91: 2019/01/04 14:00:00 | B91: 1.676 | C91: 4.934 | D91: 6.611 | E91: 27.949 | F91: 9.13 | G91: 0 | H91: -2.122 | I91: 2.24 | J91: 67.208 | K91: 71.235
A92: 2019/01/04 15:00:00 | B92: 0.805 | C92: 2.893 | D92: 3.698 | E92: 34.879 | F92: 3.755 | G92: 0 | H92: -0.909 | I92: 2.352 | J92: 92.292 | K92: 61.11
A93: 2019/01/04 16:00:00 | B93: 0.857 | C93: 3.478 | D93: 4.336 | E93: 33.604 | F93: 4.132 | G93: 0 | H93: -1.011 | I93: 2.713 | J93: 70.731 | K93: 63.43
A94: 2019/01/04 17:00:00 | B94: 0.284 | C94: 2.708 | D94: 2.992 | E94: 36.051 | F94: 4.92 | G94: 0 | H94: -1.893 | I94: 2.372 | J94: 71.648 | K94: 70.9
A95: 2019/01/04 18:00:00 | B95: 0.427 | C95: 1.969 | D95: 2.395 | E95: 38.246 | F95: 3.133 | G95: 0 | H95: -1.73 | I95: 1.525 | J95: 62.431 | K95: 77.284
A96: 2019/01/04 19:00:00 | B96: 0.5 | C96: 1.793 | D96: 2.293 | E96: 38.304 | F96: 2.303 | G96: 0 | H96: -1.798 | I96: 1.606 | J96: 53.175 | K96: 79.611
A97: 2019/01/04 20:00:00 | B97: 0.25 | C97: 1.678 | D97: 1.929 | E97: 36.925 | F97: 2.897 | G97: 0 | H97: -2.294 | I97: 1.903 | J97: 41.91 | K97: 78.997
A98: 2019/01/04 21:00:00 | B98: 0.213 | C98: 1.723 | D98: 1.937 | E98: 36.082 | F98: 3.402 | G98: 0 | H98: -2.687 | I98: 1.908 | J98: 31.983 | K98: 78.594
A99: 2019/01/04 22:00:00 | B99: 0.398 | C99: 2.073 | D99: 2.471 | E99: 34.156 | F99: 4.306 | G99: 0 | H99: -3.509 | I99: 1.744 | J99: 21.949 | K99: 78.275
A100: 2019/01/04 23:00:00 | B100: 0.623 | C100: 2.276 | D100: 2.898 | E100: 33.066 | F100: 4.129 | G100: 0 | H100: -4.321 | I100: 1.642 | J100: 25.733 | K100: 78.086
A101: 2019/01/05 00:00:00 | B101: 0.361 | C101: 1.997 | D101: 2.359 | E101: 32.395 | F101: 3.796 | G101: 0 | H101: -4.495 | I101: 0.989 | J101: 9.412 | K101: 77.184
A102: 2019/01/05 01:00:00 | B102: 0.612 | C102: 2.84 | D102: 3.453 | E102: 30.431 | F102: 5.634 | G102: 0 | H102: -4.924 | I102: 1.458 | J102: 12.854 | K102: 78.347
A103: 2019/01/05 02:00:00 | B103: 0.403 | C103: 2.055 | D103: 2.458 | E103: 30.088 | F103: 4.302 | G103: 0 | H103: -4.973 | I103: 1.209 | J103: 2.792 | K103: 77.659
A104: 2019/01/05 03:00:00 | B104: 0.466 | C104: 2.819 | D104: 3.286 | E104: 30.641 | F104: 10.291 | G104: 0 | H104: -5.08 | I104: 1.493 | J104: 23.016 | K104: 77.224
A105: 2019/01/05 04:00:00 | B105: 0.422 | C105: 1.91 | D105: 2.334 | E105: 31.113 | F105: 4.088 | G105: 0 | H105: -4.918 | I105: 0.687 | J105: 8.443 | K105: 75.369
A106: 2019/01/05 05:00:00 | B106: 0.444 | C106: 2.14 | D106: 2.586 | E106: 29.082 | F106: 8.419 | G106: 0 | H106: -5.689 | I106: 1.542 | J106: 21.463 | K106: 75.772
A107: 2019/01/05 06:00:00 | B107: 0.503 | C107: 1.99 | D107: 2.493 | E107: 30.41 | F107: 7.291 | G107: 0 | H107: -7.032 | I107: 1.009 | J107: 25.384 | K107: 75.388
A108: 2019/01/05 07:00:00 | B108: 0.499 | C108: 1.693 | D108: 2.194 | E108: 30.588 | F108: 6.819 | G108: 0 | H108: -7.804 | I108: 1.402 | J108: 20.142 | K108: 76.174
A109: 2019/01/05 08:00:00 | B109: 1.273 | C109: 2.92 | D109: 4.195 | E109: 30.109 | F109: 10.693 | G109: 0 | H109: -8.035 | I109: 1.215 | J109: 22.59 | K109: 76.395
A110: 2019/01/05 09:00:00 | B110: Z | C110: Z | D110: Z | E110: Z | F110: 5.05 | G110: 0 | H110: -7.864 | I110: 0.897 | J110: 47.597 | K110: 76.384
A111: 2019/01/05 10:00:00 | B111: 0.424 | C111: 1.313 | D111: 1.74 | E111: 30.231 | F111: 5.987 | G111: 0 | H111: -7.739 | I111: 1.114 | J111: 77.367 | K111: 77.603
A112: 2019/01/05 11:00:00 | B112: 0.36 | C112: 1.118 | D112: 1.478 | E112: 30.469 | F112: 6.254 | G112: 0 | H112: -7.985 | I112: 1.342 | J112: 80.852 | K112: 76.931
A113: 2019/01/05 12:00:00 | B113: 0.662 | C113: 1.432 | D113: 2.094 | E113: 30.231 | F113: 5.824 | G113: 0 | H113: -7.617 | I113: 1.338 | J113: 112.655 | K113: 75.108
A114: 2019/01/05 13:00:00 | B114: 1.018 | C114: 1.789 | D114: 2.807 | E114: 30.534 | F114: 12.971 | G114: 0 | H114: -7.087 | I114: 1.314 | J114: 108.761 | K114: 72.337
A115: 2019/01/05 14:00:00 | B115: 0.744 | C115: 1.754 | D115: 2.498 | E115: 30.156 | F115: 4.194 | G115: 0 | H115: -6.2 | I115: 1.141 | J115: 114.416 | K115: 70.934
A116: 2019/01/05 15:00:00 | B116: 1.01 | C116: 2.324 | D116: 3.334 | E116: 28.99 | F116: 5.054 | G116: 0 | H116: -5.951 | I116: 1.644 | J116: 85.358 | K116: 71.769
A117: 2019/01/05 16:00:00 | B117: 0.304 | C117: 1.292 | D117: 1.596 | E117: 31.918 | F117: 3.389 | G117: 0 | H117: -7.054 | I117: 2.086 | J117: 83.768 | K117: 71.732
A118: 2019/01/05 17:00:00 | B118: 0.204 | C118: 1.073 | D118: 1.277 | E118: 33.077 | F118: 3.127 | G118: 0 | H118: -8.104 | I118: 2.181 | J118: 89.948 | K118: 72.7
A119: 2019/01/05 18:00:00 | B119: 0.104 | C119: 1.128 | D119: 1.232 | E119: 31.39 | F119: 6.052 | G119: 0 | H119: -9.668 | I119: 1.988 | J119: 88.59 | K119: 75.978
A120: 2019/01/05 19:00:00 | B120: 0.409 | C120: 1.262 | D120: 1.672 | E120: 29.907 | F120: 9.539 | G120: 0 | H120: -9.042 | I120: 2.25 | J120: 113.491 | K120: 79.341
A121: 2019/01/05 20:00:00 | B121: 0.126 | C121: 1.105 | D121: 1.23 | E121: 30.09 | F121: 6.304 | G121: 0 | H121: -8.556 | I121: 2.668 | J121: 106.377 | K121: 80.043
A122: 2019/01/05 21:00:00 | B122: 0.262 | C122: 0.829 | D122: 1.09 | E122: 31.412 | F122: 14.657 | G122: 0 | H122: -9.26 | I122: 2.434 | J122: 102.169 | K122: 79.511
A123: 2019/01/05 22:00:00 | B123: 0.31 | C123: 0.967 | D123: 1.277 | E123: 31.007 | F123: 12.254 | G123: 0 | H123: -9.08 | I123: 2.386 | J123: 106.562 | K123: 77.993
A124: 2019/01/05 23:00:00 | B124: 0.293 | C124: 1.051 | D124: 1.343 | E124: 30.034 | F124: 2.679 | G124: 0 | H124: -8.569 | I124: 2.393 | J124: 104.226 | K124: 77.004
A125: 2019/01/06 00:00:00 | B125: 0.145 | C125: 1.399 | D125: 1.544 | E125: 29.58 | F125: 9.937 | G125: 0 | H125: -7.862 | I125: 2.497 | J125: 101.859 | K125: 78.129
A126: 2019/01/06 01:00:00 | B126: 0.183 | C126: 1.312 | D126: 1.493 | E126: 30.055 | F126: 7.576 | G126: 0 | H126: -6.536 | I126: 2.717 | J126: 110.221 | K126: 80.588
A127: 2019/01/06 02:00:00 | B127: 0.117 | C127: 1.817 | D127: 1.931 | E127: 30.481 | F127: 5.107 | G127: 0 | H127: -5.823 | I127: 2.746 | J127: 132.995 | K127: 81.724
A128: 2019/01/06 03:00:00 | B128: 0.147 | C128: 2.06 | D128: 2.205 | E128: 31.208 | F128: 8.721 | G128: 0 | H128: -5.622 | I128: 3.181 | J128: 139.303 | K128: 79.619
A129: 2019/01/06 04:00:00 | B129: 0.297 | C129: 3.784 | D129: 4.078 | E129: 26.234 | F129: 10.858 | G129: 0 | H129: -5.969 | I129: 3.083 | J129: 135.796 | K129: 78.902
A130: 2019/01/06 05:00:00 | B130: 0.099 | C130: 1.984 | D130: 2.08 | E130: 29.457 | F130: 7.115 | G130: 0 | H130: -6.018 | I130: 3.224 | J130: 136.12 | K130: 78.669
A131: 2019/01/06 06:00:00 | B131: 0.291 | C131: 1.186 | D131: 1.474 | E131: 30.749 | F131: 7.351 | G131: 0 | H131: -5.604 | I131: 3.439 | J131: 129.282 | K131: 79.198
A132: 2019/01/06 07:00:00 | B132: 0.012 | C132: 1.406 | D132: 1.415 | E132: 30.5 | F132: 6.96 | G132: 0 | H132: -5.221 | I132: 3.65 | J132: 130.745 | K132: 78.326
A133: 2019/01/06 08:00:00 | B133: Z | C133: Z | D133: Z | E133: Z | F133: 3.959 | G133: 0 | H133: -5.207 | I133: 3.608 | J133: 135.591 | K133: 75.383
A134: 2019/01/06 09:00:00 | B134: 0.066 | C134: 1.434 | D134: 1.497 | E134: 29.914 | F134: 3.334 | G134: 0 | H134: -5.062 | I134: 3.243 | J134: 132.855 | K134: 76.079
A135: 2019/01/06 10:00:00 | B135: 0.272 | C135: 2.529 | D135: 2.798 | E135: 29.471 | F135: 3.68 | G135: 0 | H135: -4.442 | I135: 2.967 | J135: 133.964 | K135: 75.407
A136: 2019/01/06 11:00:00 | B136: 0.54 | C136: 2.398 | D136: 2.934 | E136: 29.547 | F136: 4.633 | G136: 0 | H136: -4.227 | I136: 3.301 | J136: 140.962 | K136: 74.991
A137: 2019/01/06 12:00:00 | B137: 0.042 | C137: 1.472 | D137: 1.511 | E137: 30.266 | F137: 5.548 | G137: 0 | H137: -4.277 | I137: 3.026 | J137: 138.205 | K137: 75.672
A138: 2019/01/06 13:00:00 | B138: 0.584 | C138: 1.963 | D138: 2.544 | E138: 29.158 | F138: 7.236 | G138: 0 | H138: -4.266 | I138: 3.411 | J138: 139.366 | K138: 76.799
A139: 2019/01/06 14:00:00 | B139: 0.396 | C139: 1.733 | D139: 2.126 | E139: 28.838 | F139: 8.564 | G139: 0 | H139: -3.907 | I139: 3.435 | J139: 140.9 | K139: 77.731
A140: 2019/01/06 15:00:00 | B140: 0.743 | C140: 2.366 | D140: 3.106 | E140: 30.734 | F140: 10.061 | G140: 0 | H140: -3.24 | I140: 2.736 | J140: 140.158 | K140: 72.007
A141: 2019/01/06 16:00:00 | B141: 0.753 | C141: 2.683 | D141: 3.435 | E141: 27.143 | F141: 11.329 | G141: 0 | H141: -3.336 | I141: 2.397 | J141: 140.432 | K141: 73.868
A142: 2019/01/06 17:00:00 | B142: 0.471 | C142: 2.506 | D142: 2.973 | E142: 26.676 | F142: 13.665 | G142: 0 | H142: -3.6 | I142: 2.21 | J142: 141.675 | K142: 75.683
A143: 2019/01/06 18:00:00 | B143: 1.062 | C143: 5.374 | D143: 6.433 | E143: 23.899 | F143: 14.603 | G143: 0 | H143: -3.55 | I143: 1.65 | J143: 133.639 | K143: 76.449
A144: 2019/01/06 19:00:00 | B144: 0.222 | C144: 4.072 | D144: 4.291 | E144: 25.295 | F144: 14.707 | G144: 0 | H144: -3.889 | I144: 2.025 | J144: 127.121 | K144: 78.339
A145: 2019/01/06 20:00:00 | B145: 0.191 | C145: 2.915 | D145: 3.103 | E145: 24.005 | F145: 19.689 | G145: 0 | H145: -3.47 | I145: 1.531 | J145: 134.129 | K145: 78.938
A146: 2019/01/06 21:00:00 | B146: 1.095 | C146: 10.302 | D146: 11.393 | E146: 15.437 | F146: 22.338 | G146: 0 | H146: -3.279 | I146: 1.187 | J146: 117.152 | K146: 78.918
A147: 2019/01/06 22:00:00 | B147: 1.119 | C147: 6.513 | D147: 7.628 | E147: 17.569 | F147: 21.075 | G147: 0 | H147: -4.168 | I147: 0.79 | J147: 105.088 | K147: 79.433
A148: 2019/01/06 23:00:00 | B148: 0.147 | C148: 4.896 | D148: 5.041 | E148: 16.974 | F148: 3.149 | G148: 0 | H148: -4.185 | I148: 0.551 | J148: 94.238 | K148: 78.563
A149: 2019/01/07 00:00:00 | B149: 1.348 | C149: 4.846 | D149: 6.191 | E149: 18.956 | F149: 0.785 | G149: 0 | H149: -1.021 | I149: 1.884 | J149: 219.691 | K149: 76.355
A150: 2019/01/07 01:00:00 | B150: 1.48 | C150: 2.992 | D150: 4.47 | E150: 19.477 | F150: 0.964 | G150: 0 | H150: 0.056 | I150: 2.683 | J150: 231.46 | K150: 75.731
A151: 2019/01/07 02:00:00 | B151: 0.917 | C151: 3.484 | D151: 4.397 | E151: 17.765 | F151: 1.992 | G151: 0 | H151: -0.788 | I151: 3.353 | J151: 238.185 | K151: 77.579
A152: 2019/01/07 03:00:00 | B152: 2.068 | C152: 2.892 | D152: 4.958 | E152: 19.065 | F152: 4.057 | G152: 0 | H152: -0.898 | I152: 3.111 | J152: 252.193 | K152: 77.502
A153: 2019/01/07 04:00:00 | B153: 1.403 | C153: 5.143 | D153: 6.542 | E153: 19.979 | F153: 5.873 | G153: 0 | H153: -2.162 | I153: 2.85 | J153: 268.821 | K153: 76.699
A154: 2019/01/07 05:00:00 | B154: 2.212 | C154: 3.428 | D154: 5.636 | E154: 23.774 | F154: 7.655 | G154: 0 | H154: -2.927 | I154: 3.013 | J154: 260.183 | K154: 76.503
A155: 2019/01/07 06:00:00 | B155: 1.037 | C155: 2.945 | D155: 3.979 | E155: 24.394 | F155: 8.055 | G155: 0 | H155: -2.91 | I155: 2.684 | J155: 264.337 | K155: 74.944
A156: 2019/01/07 07:00:00 | B156: Z | C156: Z | D156: Z | E156: Z | F156: 5.114 | G156: 0 | H156: -3.652 | I156: 4.135 | J156: 298.233 | K156: 74.215
A157: 2019/01/07 08:00:00 | B157: 0.847 | C157: 3.296 | D157: 4.139 | E157: 25.568 | F157: 4.882 | G157: 0 | H157: -5.083 | I157: 4.204 | J157: 296.65 | K157: 77.765
A158: 2019/01/07 09:00:00 | B158: 1.837 | C158: 4.225 | D158: 6.059 | E158: 25.477 | F158: 4.851 | G158: 0 | H158: -6.144 | I158: 4.519 | J158: 300.518 | K158: 74.581
A159: 2019/01/07 10:00:00 | B159: 1.046 | C159: 3.739 | D159: 4.782 | E159: 26.766 | F159: 3.479 | G159: 0 | H159: -7.607 | I159: 4.821 | J159: 305.711 | K159: 74.926
A160: 2019/01/07 11:00:00 | B160: 0.944 | C160: 2.466 | D160: 3.407 | E160: 28.122 | F160: 2.841 | G160: 0 | H160: -8.438 | I160: 4.936 | J160: 305.926 | K160: 72.961
A161: 2019/01/07 12:00:00 | B161: 2.036 | C161: 2.803 | D161: 4.835 | E161: 28.587 | F161: 2.388 | G161: 0 | H161: -9.01 | I161: 4.728 | J161: 302.239 | K161: 74.322
A162: 2019/01/07 13:00:00 | B162: 2.299 | C162: 3.445 | D162: 5.741 | E162: 26.583 | F162: 3.172 | G162: 0 | H162: -9.313 | I162: 4.251 | J162: 294.86 | K162: 75.149
A163: 2019/01/07 14:00:00 | B163: 3.484 | C163: 4.196 | D163: 7.677 | E163: 23.281 | F163: 3.773 | G163: 0 | H163: -8.999 | I163: 4.247 | J163: 294.475 | K163: 72.965
A164: 2019/01/07 15:00:00 | B164: 2.457 | C164: 4.049 | D164: 6.503 | E164: 21.643 | F164: 4.561 | G164: 0 | H164: -8.94 | I164: 5.418 | J164: 303.391 | K164: 69.592
A165: 2019/01/07 16:00:00 | B165: 3.566 | C165: 3 | D165: 6.564 | E165: 25.761 | F165: 2.71 | G165: 0 | H165: -10.588 | I165: 5.738 | J165: 302.258 | K165: 72.258
A166: 2019/01/07 17:00:00 | B166: 1.154 | C166: 3.145 | D166: 4.296 | E166: 28.508 | F166: 1.828 | G166: 0 | H166: -11.681 | I166: 5.472 | J166: 300.541 | K166: 69.354
A167: 2019/01/07 18:00:00 | B167: 0.995 | C167: 2.35 | D167: 3.342 | E167: 29.946 | F167: 1.404 | G167: 0 | H167: -12.63 | I167: 6.198 | J167: 302.917 | K167: 65.808
A168: 2019/01/07 19:00:00 | B168: 0.73 | C168: 1.967 | D168: 2.695 | E168: 29.724 | F168: 1.62 | G168: 0 | H168: -12.951 | I168: 5.992 | J168: 303.3 | K168: 65.467
A169: 2019/01/07 20:00:00 | B169: 0.663 | C169: 2.265 | D169: 2.926 | E169: 30.097 | F169: 1.458 | G169: 0 | H169: -13.832 | I169: 5.548 | J169: 301.074 | K169: 63.128
A170: 2019/01/07 21:00:00 | B170: 1.348 | C170: 2.511 | D170: 3.856 | E170: 29.512 | F170: 1.551 | G170: 0 | H170: -14.193 | I170: 4.591 | J170: 295.198 | K170: 62.679
A171: 2019/01/07 22:00:00 | B171: 1.236 | C171: 3.09 | D171: 4.324 | E171: 28.816 | F171: 1.365 | G171: 0 | H171: -14.137 | I171: 4.812 | J171: 298.692 | K171: 62.587
A172: 2019/01/07 23:00:00 | B172: 0.75 | C172: 1.776 | D172: 2.523 | E172: 30.742 | F172: 1.209 | G172: 0 | H172: -14.321 | I172: 4.914 | J172: 300.213 | K172: 62.58
A173: 2019/01/08 00:00:00 | B173: 1.09 | C173: 2.807 | D173: 3.894 | E173: 30.151 | F173: 1.168 | G173: 0 | H173: -14.691 | I173: 4.94 | J173: 299.788 | K173: 61.738
A174: 2019/01/08 01:00:00 | B174: 1.427 | C174: 3.093 | D174: 4.518 | E174: 30.161 | F174: 1.106 | G174: 0 | H174: -15.392 | I174: 4.161 | J174: 290.037 | K174: 61.272
A175: 2019/01/08 02:00:00 | B175: 0.14 | C175: 1.211 | D175: 1.349 | E175: 32.048 | F175: 0.917 | G175: 0 | H175: -15.573 | I175: 4.896 | J175: 296.28 | K175: 59.5
A176: 2019/01/08 03:00:00 | B176: 0.974 | C176: 2.011 | D176: 2.983 | E176: 31.97 | F176: 0.795 | G176: 0 | H176: -15.766 | I176: 5.311 | J176: 297.857 | K176: 59.405
A177: 2019/01/08 04:00:00 | B177: 1.678 | C177: 2.96 | D177: 4.635 | E177: 31.211 | F177: 0.817 | G177: 0 | H177: -15.953 | I177: 4.704 | J177: 295.547 | K177: 60.841
A178: 2019/01/08 05:00:00 | B178: 1.352 | C178: 2.365 | D178: 3.715 | E178: 31.507 | F178: 0.823 | G178: 0 | H178: -15.945 | I178: 4.342 | J178: 290.286 | K178: 62.276
A179: 2019/01/08 06:00:00 | B179: Z | C179: Z | D179: Z | E179: Z | F179: 0.776 | G179: 0 | H179: -16.359 | I179: 4.583 | J179: 295.815 | K179: 63.066
A180: 2019/01/08 07:00:00 | B180: 1.488 | C180: 2.802 | D180: 4.289 | E180: 30.671 | F180: 0.914 | G180: 0 | H180: -16.474 | I180: 6.43 | J180: 312.791 | K180: 62.352
A181: 2019/01/08 08:00:00 | B181: 1.646 | C181: 3.075 | D181: 4.72 | E181: 30.273 | F181: 0.976 | G181: 0 | H181: -15.563 | I181: 4.718 | J181: 304.205 | K181: 64.858
A182: 2019/01/08 09:00:00 | B182: 2.717 | C182: 3.884 | D182: 6.601 | E182: 30.519 | F182: 1.093 | G182: 0 | H182: -14.824 | I182: 4.636 | J182: 304.29 | K182: 66.293
A183: 2019/01/08 10:00:00 | B183: 3.773 | C183: 3.528 | D183: 7.298 | E183: 31.631 | F183: 1.043 | G183: 0 | H183: -14.821 | I183: 4.276 | J183: 294.503 | K183: 65.532
A184: 2019/01/08 11:00:00 | B184: 2.079 | C184: 4.326 | D184: 6.406 | E184: 31.498 | F184: 0.943 | G184: 0 | H184: -14.884 | I184: 3.891 | J184: 295.146 | K184: 64.849
A185: 2019/01/08 12:00:00 | B185: 3.114 | C185: 3.423 | D185: 6.538 | E185: 32.163 | F185: 0.92 | G185: 0 | H185: -14.888 | I185: 3.542 | J185: 280.513 | K185: 63.37
A186: 2019/01/08 13:00:00 | B186: 5.529 | C186: 4.553 | D186: 10.08 | E186: 32.022 | F186: 1.009 | G186: 0 | H186: -14.861 | I186: 3.938 | J186: 284.127 | K186: 61.831
A187: 2019/01/08 14:00:00 | B187: 3.636 | C187: 2.774 | D187: 6.409 | E187: 32.449 | F187: 1.015 | G187: 0 | H187: -15.045 | I187: 4.089 | J187: 289.328 | K187: 60.724
A188: 2019/01/08 15:00:00 | B188: 2.84 | C188: 3.222 | D188: 6.061 | E188: 32.327 | F188: 1.051 | G188: 0 | H188: -15.442 | I188: 4.32 | J188: 296.027 | K188: 60.493
A189: 2019/01/08 16:00:00 | B189: 4.156 | C189: 4.415 | D189: 8.571 | E189: 31.579 | F189: 1.187 | G189: 0 | H189: -15.866 | I189: 4.067 | J189: 298.853 | K189: 60.05
A190: 2019/01/08 17:00:00 | B190: 2.681 | C190: 4.879 | D190: 7.561 | E190: 30.774 | F190: 1.559 | G190: 0 | H190: -16.332 | I190: 2.675 | J190: 280.6 | K190: 58.984
A191: 2019/01/08 18:00:00 | B191: 2.369 | C191: 6.248 | D191: 8.617 | E191: 29.526 | F191: 1.724 | G191: 0 | H191: -17.625 | I191: 3.232 | J191: 298.175 | K191: 61.284
A192: 2019/01/08 19:00:00 | B192: 6.097 | C192: 10.384 | D192: 16.481 | E192: 26.772 | F192: 1.894 | G192: 0 | H192: -18.393 | I192: 1.978 | J192: 280.304 | K192: 62.459
A193: 2019/01/08 20:00:00 | B193: 4.458 | C193: 10.614 | D193: 15.072 | E193: 25.011 | F193: 2.097 | G193: 0 | H193: -19.683 | I193: 1.057 | J193: 252.146 | K193: 64.192
A194: 2019/01/08 21:00:00 | B194: 2.127 | C194: 5.962 | D194: 8.088 | E194: 28.264 | F194: 1.991 | G194: 0 | H194: -20.771 | I194: 1.395 | J194: 258.239 | K194: 66.276
A195: 2019/01/08 22:00:00 | B195: 2.36 | C195: 7.907 | D195: 10.268 | E195: 25.835 | F195: 1.804 | G195: 0 | H195: -21.928 | I195: 0.809 | J195: 216.042 | K195: 66.37
A196: 2019/01/08 23:00:00 | B196: 2.399 | C196: 7.313 | D196: 9.712 | E196: 26.207 | F196: 1.786 | G196: 0 | H196: -22.779 | I196: 0.923 | J196: 221.477 | K196: 67.284
A197: 2019/01/09 00:00:00 | B197: 1.261 | C197: 5.923 | D197: 7.186 | E197: 26.804 | F197: 1.714 | G197: 0 | H197: -23.264 | I197: 1.287 | J197: 212.69 | K197: 67.932
A198: 2019/01/09 01:00:00 | B198: 6.307 | C198: 11.281 | D198: 17.589 | E198: 21.486 | F198: 1.662 | G198: 0 | H198: -23.965 | I198: 0.808 | J198: 186.76 | K198: 67.935
A199: 2019/01/09 02:00:00 | B199: 2.084 | C199: 8.434 | D199: 10.52 | E199: 22.7 | F199: 1.47 | G199: 0 | H199: -23.911 | I199: 0.475 | J199: 191.093 | K199: 67.282
A200: 2019/01/09 03:00:00 | B200: 1.978 | C200: 8.354 | D200: 10.332 | E200: 22.474 | F200: 1.696 | G200: 0 | H200: -23.312 | I200: 0.477 | J200: 121.524 | K200: 67.61
A201: 2019/01/09 04:00:00 | B201: 0.666 | C201: 6.261 | D201: 6.928 | E201: 24.887 | F201: 1.437 | G201: 0 | H201: -21.184 | I201: 0.97 | J201: 93.763 | K201: 68.275
... 556 more rows

Sheet Kerrobert
A1: Group: Global WYAMZ - Monthly Monthly: 01/2019 Type: AVG 1 Hr.
A3: Date & Time | B3: Kerrobert | C3: Kerrobert | D3: Kerrobert | E3: Kerrobert | F3: Kerrobert | G3: Kerrobert | H3: Kerrobert | I3: Kerrobert
B4: SO2 | C4: H2S | D4: PM25 | E4: PRECIP | F4: TEMPERAT | G4: RH | H4: WS | I4: WD
B5: ppb | C5: ppb | D5: ug/m3(L) | E5: mm | F5: C° | G5: %RH | H5: m/s | I5: Deg
A6: 2019/01/01 01:00:00 | B6: -0.066 | C6: 0.04 | D6: 9.047 | E6: 0 | F6: -24.475 | G6: 72.341 | H6: 2.826 | I6: 212.372
A7: 2019/01/01 02:00:00 | B7: -0.022 | C7: 0.058 | D7: 9.786 | E7: 0 | F7: -22.165 | G7: 73.271 | H7: 4.317 | I7: 212.233
A8: 2019/01/01 03:00:00 | B8: -0.027 | C8: 0.091 | D8: 7.283 | E8: 0 | F8: -21.514 | G8: 73.284 | H8: 3.615 | I8: 206.48
A9: 2019/01/01 04:00:00 | B9: -0.013 | C9: 0.127 | D9: 5.221 | E9: 0 | F9: -19.837 | G9: 74.078 | H9: 3.98 | I9: 205.262
A10: 2019/01/01 05:00:00 | B10: -0.008 | C10: 0.065 | D10: 4.665 | E10: 0 | F10: -17.176 | G10: 73.966 | H10: 5.184 | I10: 203.475
A11: 2019/01/01 06:00:00 | B11: -0.067 | C11: 0.059 | D11: 4.947 | E11: 0 | F11: -15.931 | G11: 72.166 | H11: 6.312 | I11: 207.384
A12: 2019/01/01 07:00:00 | B12: -0.102 | C12: 0.097 | D12: 4.755 | E12: 0 | F12: -14.589 | G12: 71.509 | H12: 7.774 | I12: 213.439
A13: 2019/01/01 08:00:00 | B13: -0.034 | C13: 0.104 | D13: 3.918 | E13: 0 | F13: -12.646 | G13: 69.98 | H13: 7.984 | I13: 215.716
A14: 2019/01/01 09:00:00 | B14: -0.066 | C14: 0.063 | D14: 2.49 | E14: 0 | F14: -10.868 | G14: 67.78 | H14: 7.396 | I14: 217.893
A15: 2019/01/01 10:00:00 | B15: -0.092 | C15: 0.017 | D15: 1.969 | E15: 0 | F15: -9.96 | G15: 68.584 | H15: 7.643 | I15: 215.982
A16: 2019/01/01 11:00:00 | B16: -0.052 | C16: 0.101 | D16: 1.542 | E16: 0.08 | F16: -8.881 | G16: 71.564 | H16: 5.707 | I16: 234.381
A17: 2019/01/01 12:00:00 | B17: -0.019 | C17: 0.13 | D17: 1.402 | E17: 0 | F17: -7.559 | G17: 73.821 | H17: 6.697 | I17: 256.404
A18: 2019/01/01 13:00:00 | B18: Z | C18: Z | D18: 1.355 | E18: 0 | F18: -5.293 | G18: 73.319 | H18: 7.113 | I18: 277
A19: 2019/01/01 14:00:00 | B19: 0.172 | C19: 0.192 | D19: 1.059 | E19: 0 | F19: -2.423 | G19: 71.941 | H19: 6.659 | I19: 285.679
A20: 2019/01/01 15:00:00 | B20: 0.152 | C20: 0.189 | D20: 0.59 | E20: 0 | F20: -0.28 | G20: 69.108 | H20: 3.877 | I20: 297.147
A21: 2019/01/01 16:00:00 | B21: 0.172 | C21: 0.218 | D21: 0.462 | E21: 0 | F21: -0.009 | G21: 68.301 | H21: 3.764 | I21: 297.2
A22: 2019/01/01 17:00:00 | B22: 0.113 | C22: 0.232 | D22: 0.597 | E22: 0 | F22: -0.595 | G22: 69.641 | H22: 3.321 | I22: 306.731
A23: 2019/01/01 18:00:00 | B23: 0.035 | C23: 0.129 | D23: 0.737 | E23: 0 | F23: -2.409 | G23: 72.092 | H23: 2.092 | I23: 304.632
A24: 2019/01/01 19:00:00 | B24: -0.037 | C24: 0.18 | D24: 0.646 | E24: 0 | F24: -4.261 | G24: 74.528 | H24: 4.157 | I24: 285.243
A25: 2019/01/01 20:00:00 | B25: -0.021 | C25: 0.131 | D25: 0.614 | E25: 0 | F25: -4.717 | G25: 74.779 | H25: 5.51 | I25: 268.29
A26: 2019/01/01 21:00:00 | B26: -0.057 | C26: 0.149 | D26: 0.582 | E26: 0 | F26: -4.512 | G26: 74.598 | H26: 7.325 | I26: 267.763
A27: 2019/01/01 22:00:00 | B27: 0.037 | C27: 0.002 | D27: 0.587 | E27: 0 | F27: -3.519 | G27: 73.669 | H27: 6.673 | I27: 270.832
A28: 2019/01/01 23:00:00 | B28: 0.042 | C28: 0.104 | D28: 0.596 | E28: 0 | F28: -5.403 | G28: 74.889 | H28: 4.643 | I28: 262.684
A29: 2019/01/02 00:00:00 | B29: 0.084 | C29: 0.098 | D29: 0.617 | E29: 0 | F29: -4.372 | G29: 74.585 | H29: 5.1 | I29: 281.305
A30: 2019/01/02 01:00:00 | B30: 0.116 | C30: 0.088 | D30: 0.61 | E30: 0 | F30: -3.483 | G30: 74.815 | H30: 4.612 | I30: 282.576
A31: 2019/01/02 02:00:00 | B31: 0.054 | C31: 0.068 | D31: 0.635 | E31: 0 | F31: -4.535 | G31: 76.058 | H31: 3.795 | I31: 283.467
A32: 2019/01/02 03:00:00 | B32: 0.065 | C32: 0.024 | D32: 0.824 | E32: 0 | F32: -4.945 | G32: 77.144 | H32: 2.769 | I32: 280.855
A33: 2019/01/02 04:00:00 | B33: 0.042 | C33: 0.047 | D33: 0.872 | E33: 0 | F33: -4.365 | G33: 76.731 | H33: 1.015 | I33: 286.952
A34: 2019/01/02 05:00:00 | B34: 0.012 | C34: 0.034 | D34: 0.822 | E34: 0 | F34: -3.961 | G34: 75.893 | H34: 1.761 | I34: 258.997
A35: 2019/01/02 06:00:00 | B35: 0.05 | C35: 0.26 | D35: 0.88 | E35: 0 | F35: -3.533 | G35: 76.909 | H35: 2.226 | I35: 231.957
A36: 2019/01/02 07:00:00 | B36: 0.093 | C36: 0.122 | D36: 0.753 | E36: 0 | F36: -0.808 | G36: 73.759 | H36: 3.451 | I36: 252.498
A37: 2019/01/02 08:00:00 | B37: 0.072 | C37: 0.039 | D37: 0.695 | E37: 0 | F37: 0.031 | G37: 73.543 | H37: 3.29 | I37: 250.89
A38: 2019/01/02 09:00:00 | B38: 0.074 | C38: 0.058 | D38: 0.654 | E38: 0 | F38: 0.485 | G38: 73.047 | H38: 3.744 | I38: 238.962
A39: 2019/01/02 10:00:00 | B39: 0.09 | C39: 0.142 | D39: 0.614 | E39: 0 | F39: 0.494 | G39: 73.395 | H39: 4.22 | I39: 241.526
A40: 2019/01/02 11:00:00 | B40: 0.131 | C40: 0.149 | D40: 0.66 | E40: 0 | F40: 1.569 | G40: 73.038 | H40: 4.555 | I40: 243.981
A41: 2019/01/02 12:00:00 | B41: Z | C41: Z | D41: 0.812 | E41: 0 | F41: 2.71 | G41: 69.427 | H41: 5.166 | I41: 242.959
A42: 2019/01/02 13:00:00 | B42: 0.121 | C42: 0.116 | D42: 0.91 | E42: 0 | F42: 2.828 | G42: 68.304 | H42: 5.3 | I42: 246.284
A43: 2019/01/02 14:00:00 | B43: 0.095 | C43: 0.139 | D43: 0.95 | E43: 0 | F43: 3.044 | G43: 68.224 | H43: 4.734 | I43: 243.754
A44: 2019/01/02 15:00:00 | B44: 0.067 | C44: 0.14 | D44: 1.016 | E44: 0 | F44: 2.623 | G44: 70.597 | H44: 4.275 | I44: 238.71
A45: 2019/01/02 16:00:00 | B45: 0.081 | C45: 0.17 | D45: 1.099 | E45: 0 | F45: 2.302 | G45: 71.521 | H45: 4.97 | I45: 246.792
A46: 2019/01/02 17:00:00 | B46: 0.025 | C46: 0.106 | D46: 1.708 | E46: 0 | F46: 2.17 | G46: 72.522 | H46: 4.249 | I46: 246.699
A47: 2019/01/02 18:00:00 | B47: 0.09 | C47: 0.164 | D47: 1.856 | E47: 0 | F47: 2.297 | G47: 72.434 | H47: 5.403 | I47: 273.336
A48: 2019/01/02 19:00:00 | B48: 0.098 | C48: 0.115 | D48: 1.707 | E48: 0 | F48: 2.684 | G48: 70.798 | H48: 4.977 | I48: 282.706
A49: 2019/01/02 20:00:00 | B49: 0.14 | C49: 0.112 | D49: 1.855 | E49: 0 | F49: 1.957 | G49: 73.085 | H49: 2.915 | I49: 287.298
A50: 2019/01/02 21:00:00 | B50: 0.093 | C50: 0.17 | D50: 1.908 | E50: 0 | F50: 1.268 | G50: 73.557 | H50: 2.526 | I50: 287.65
A51: 2019/01/02 22:00:00 | B51: 0.107 | C51: 0.075 | D51: 1.922 | E51: 0 | F51: 1.114 | G51: 71.954 | H51: 2.298 | I51: 267.092
A52: 2019/01/02 23:00:00 | B52: 0.119 | C52: 0.114 | D52: 1.867 | E52: 0 | F52: 1.181 | G52: 71.223 | H52: 1.572 | I52: 232.654
A53: 2019/01/03 00:00:00 | B53: 0.094 | C53: 0.228 | D53: 1.877 | E53: 0 | F53: 0.848 | G53: 69.374 | H53: 2.372 | I53: 244.604
A54: 2019/01/03 01:00:00 | B54: 0.021 | C54: 0.247 | D54: 2.169 | E54: 0 | F54: -0.296 | G54: 75.224 | H54: 2.041 | I54: 225.35
A55: 2019/01/03 02:00:00 | B55: 0.109 | C55: 0.282 | D55: 2.287 | E55: 0 | F55: -1.291 | G55: 69.455 | H55: 2.221 | I55: 218.882
A56: 2019/01/03 03:00:00 | B56: 0.055 | C56: 0.181 | D56: 2.724 | E56: 0 | F56: -2.385 | G56: 77.441 | H56: 2.06 | I56: 223.428
A57: 2019/01/03 04:00:00 | B57: 0.092 | C57: 0.077 | D57: 2.178 | E57: 0 | F57: -2.553 | G57: 77.6 | H57: 2.163 | I57: 225.818
A58: 2019/01/03 05:00:00 | B58: 0.078 | C58: 0.173 | D58: 1.703 | E58: 0 | F58: -2.899 | G58: 76.874 | H58: 2.456 | I58: 233.185
A59: 2019/01/03 06:00:00 | B59: 0.069 | C59: 0.284 | D59: 2.332 | E59: 0 | F59: -3.675 | G59: 78.112 | H59: 2.804 | I59: 291.611
A60: 2019/01/03 07:00:00 | B60: 0.038 | C60: 0.126 | D60: 3.098 | E60: 0 | F60: -3.723 | G60: 71.149 | H60: 1.554 | I60: 301.566
A61: 2019/01/03 08:00:00 | B61: 0.049 | C61: 0.039 | D61: 3.341 | E61: 0 | F61: -4.281 | G61: 77.445 | H61: 1.817 | I61: 238.04
A62: 2019/01/03 09:00:00 | B62: -0.013 | C62: 0.064 | D62: 3.325 | E62: 0 | F62: -3.047 | G62: 77.564 | H62: 1.608 | I62: 287.272
A63: 2019/01/03 10:00:00 | B63: 0.062 | C63: 0.072 | D63: 3.133 | E63: 0 | F63: -3.537 | G63: 77.51 | H63: 1.424 | I63: 302.159
A64: 2019/01/03 11:00:00 | B64: Z | C64: Z | D64: 3.221 | E64: 0 | F64: -3.367 | G64: 77.183 | H64: 1.191 | I64: 264.017
A65: 2019/01/03 12:00:00 | B65: 0.192 | C65: 0.173 | D65: 2.336 | E65: 0 | F65: -1.12 | G65: 74.058 | H65: 1.917 | I65: 261.801
A66: 2019/01/03 13:00:00 | B66: 0.229 | C66: 0.181 | D66: 2.417 | E66: 0 | F66: 1.625 | G66: 66.658 | H66: 1.232 | I66: 244.356
A67: 2019/01/03 14:00:00 | B67: 0.26 | C67: 0.286 | D67: 2.532 | E67: 0 | F67: 1.749 | G67: 67.623 | H67: 1.335 | I67: 263.666
A68: 2019/01/03 15:00:00 | B68: 0.256 | C68: 0.366 | D68: 2.555 | E68: 0 | F68: 2.1 | G68: 64.54 | H68: 1.161 | I68: 232.235
A69: 2019/01/03 16:00:00 | B69: 0.29 | C69: 0.296 | D69: 2.352 | E69: 0 | F69: 2.8 | G69: 63.706 | H69: 0.814 | I69: 277.082
A70: 2019/01/03 17:00:00 | B70: 0.317 | C70: 0.329 | D70: 2.176 | E70: 0 | F70: 3.18 | G70: 63.084 | H70: 0.42 | I70: 272.168
A71: 2019/01/03 18:00:00 | B71: 0.087 | C71: 0.333 | D71: 4.655 | E71: 0 | F71: -0.5 | G71: 73.561 | H71: 0.413 | I71: 265.707
A72: 2019/01/03 19:00:00 | B72: 0.107 | C72: 0.375 | D72: 8.549 | E72: 0 | F72: -1.005 | G72: 77.069 | H72: 0.11 | I72: 306.092
A73: 2019/01/03 20:00:00 | B73: 0.071 | C73: 0.264 | D73: 8.177 | E73: 0 | F73: -4.509 | G73: 78.654 | H73: 0.862 | I73: 230.406
A74: 2019/01/03 21:00:00 | B74: 0.05 | C74: 0.213 | D74: 9.776 | E74: 0 | F74: -3.045 | G74: 79.52 | H74: 0.64 | I74: 203.105
A75: 2019/01/03 22:00:00 | B75: -0.006 | C75: 0.253 | D75: 10.026 | E75: 0 | F75: -3.595 | G75: 81.575 | H75: 0.527 | I75: 348.156
A76: 2019/01/03 23:00:00 | B76: 0.004 | C76: 0.226 | D76: 8.219 | E76: 0 | F76: -4.832 | G76: 83.078 | H76: 0.275 | I76: 217.37
A77: 2019/01/04 00:00:00 | B77: 0.072 | C77: 0.255 | D77: 11.113 | E77: 0 | F77: -5.232 | G77: 83.409 | H77: 0.532 | I77: 14.469
A78: 2019/01/04 01:00:00 | B78: 0.162 | C78: 0.165 | D78: 12.854 | E78: 0 | F78: -2.684 | G78: 83.276 | H78: 1.462 | I78: 17.37
A79: 2019/01/04 02:00:00 | B79: 0.164 | C79: 0.089 | D79: 6.269 | E79: 0 | F79: -2.389 | G79: 72.449 | H79: 1.654 | I79: 24.409
A80: 2019/01/04 03:00:00 | B80: 0.153 | C80: 0.163 | D80: 7.303 | E80: 0 | F80: -2.957 | G80: 73.499 | H80: 1.568 | I80: 33.129
A81: 2019/01/04 04:00:00 | B81: 0.178 | C81: 0.077 | D81: 9.668 | E81: 0 | F81: -3.837 | G81: 78.38 | H81: 1.45 | I81: 34.8
A82: 2019/01/04 05:00:00 | B82: 0.172 | C82: 0.099 | D82: 12.356 | E82: 0 | F82: -4.608 | G82: 82.043 | H82: 1.344 | I82: 44.555
A83: 2019/01/04 06:00:00 | B83: 0.174 | C83: 0.121 | D83: 12.442 | E83: 0 | F83: -5.554 | G83: 84.489 | H83: 1.147 | I83: 76.887
A84: 2019/01/04 07:00:00 | B84: 0.235 | C84: 0.141 | D84: 10.769 | E84: 0 | F84: -5.351 | G84: 82.084 | H84: 0.823 | I84: 98.492
A85: 2019/01/04 08:00:00 | B85: 0.316 | C85: 0.183 | D85: 9.759 | E85: 0 | F85: -5.103 | G85: 77.53 | H85: 0.98 | I85: 108.905
A86: 2019/01/04 09:00:00 | B86: 0.142 | C86: 0.055 | D86: 9.314 | E86: 0 | F86: -6.107 | G86: 77.641 | H86: 2.203 | I86: 101.386
A87: 2019/01/04 10:00:00 | B87: Z | C87: Z | D87: 7.903 | E87: 0 | F87: -5.994 | G87: 77.401 | H87: 3.133 | I87: 132.257
A88: 2019/01/04 11:00:00 | B88: 0.062 | C88: 0.141 | D88: 7.74 | E88: 0 | F88: -5.338 | G88: 78.56 | H88: 2.343 | I88: 94.534
A89: 2019/01/04 12:00:00 | B89: 0.102 | C89: 0.055 | D89: 6.71 | E89: 0 | F89: -5.006 | G89: 79.152 | H89: 2.948 | I89: 75.311
A90: 2019/01/04 13:00:00 | B90: 0.139 | C90: -0.003 | D90: 5.007 | E90: 0 | F90: -3.305 | G90: 76.622 | H90: 3.384 | I90: 92.173
A91: 2019/01/04 14:00:00 | B91: 0.17 | C91: -0.026 | D91: 4.326 | E91: 0 | F91: -2.007 | G91: 75.322 | H91: 2.889 | I91: 115.454
A92: 2019/01/04 15:00:00 | B92: 0.079 | C92: 0.038 | D92: 4.224 | E92: 0 | F92: -1.507 | G92: 74.97 | H92: 2.224 | I92: 103.593
A93: 2019/01/04 16:00:00 | B93: 0.127 | C93: 0.067 | D93: 4.774 | E93: 0 | F93: -1.396 | G93: 73.795 | H93: 1.199 | I93: 111.592
A94: 2019/01/04 17:00:00 | B94: 0.032 | C94: 0.068 | D94: 6.156 | E94: 0 | F94: -2.06 | G94: 78.496 | H94: 2.394 | I94: 82.277
A95: 2019/01/04 18:00:00 | B95: -0.005 | C95: 0.066 | D95: 9.139 | E95: 0 | F95: -2.346 | G95: 78.227 | H95: 2.298 | I95: 51.021
A96: 2019/01/04 19:00:00 | B96: -0.019 | C96: 0.061 | D96: 4.163 | E96: 0 | F96: -3.183 | G96: 75.298 | H96: 2.941 | I96: 53.856
A97: 2019/01/04 20:00:00 | B97: -0.024 | C97: -0.047 | D97: 3.515 | E97: 0 | F97: -3.71 | G97: 79.007 | H97: 2.158 | I97: 49.187
A98: 2019/01/04 21:00:00 | B98: -0.005 | C98: 0.036 | D98: 2.668 | E98: 0 | F98: -3.815 | G98: 80.836 | H98: 1.858 | I98: 31.825
A99: 2019/01/04 22:00:00 | B99: -0.013 | C99: 0.027 | D99: 1.696 | E99: 0 | F99: -3.995 | G99: 81.095 | H99: 1.665 | I99: 20.292
A100: 2019/01/04 23:00:00 | B100: -0.015 | C100: -0.094 | D100: 1.361 | E100: 0 | F100: -3.827 | G100: 81.82 | H100: 1.457 | I100: 46.29
A101: 2019/01/05 00:00:00 | B101: -0.016 | C101: -0.044 | D101: 1.286 | E101: 0 | F101: -3.641 | G101: 81.04 | H101: 0.654 | I101: 27.564
A102: 2019/01/05 01:00:00 | B102: 0.004 | C102: 0.071 | D102: 1.457 | E102: 0 | F102: -3.673 | G102: 80.847 | H102: 0.913 | I102: 49.063
A103: 2019/01/05 02:00:00 | B103: -0.011 | C103: 0.002 | D103: 2.016 | E103: 0 | F103: -3.792 | G103: 81.39 | H103: 1.099 | I103: 58.256
A104: 2019/01/05 03:00:00 | B104: -0.044 | C104: -0.021 | D104: 2.954 | E104: 0 | F104: -3.802 | G104: 81.921 | H104: 0.476 | I104: 83.767
A105: 2019/01/05 04:00:00 | B105: -0.071 | C105: -0.025 | D105: 2.905 | E105: 0 | F105: -4.026 | G105: 82.19 | H105: 0.834 | I105: 106.922
A106: 2019/01/05 05:00:00 | B106: -0.036 | C106: -0.082 | D106: 2.772 | E106: 0 | F106: -4.138 | G106: 82.927 | H106: 1.211 | I106: 149.286
A107: 2019/01/05 06:00:00 | B107: -0.026 | C107: -0.041 | D107: 3.287 | E107: 0 | F107: -3.943 | G107: 82.105 | H107: 0.987 | I107: 204.567
A108: 2019/01/05 07:00:00 | B108: -0.069 | C108: 0.032 | D108: 3.358 | E108: 0 | F108: -3.981 | G108: 82.918 | H108: 0.485 | I108: 51.661
A109: 2019/01/05 08:00:00 | B109: -0.05 | C109: -0.025 | D109: 4.347 | E109: 0 | F109: -4.429 | G109: 85.166 | H109: 1.382 | I109: 72.037
A110: 2019/01/05 09:00:00 | B110: Z | C110: Z | D110: 3.188 | E110: 0 | F110: -4.672 | G110: 84.279 | H110: 2.672 | I110: 120.671
A111: 2019/01/05 10:00:00 | B111: -0.005 | C111: 0.03 | D111: 3.204 | E111: 0 | F111: -5.178 | G111: 83.751 | H111: 3.26 | I111: 127.956
A112: 2019/01/05 11:00:00 | B112: -0.028 | C112: -0.042 | D112: 5.086 | E112: 0 | F112: -5.27 | G112: 83.433 | H112: 3.417 | I112: 127.274
A113: 2019/01/05 12:00:00 | B113: -0.101 | C113: -0.008 | D113: 6.202 | E113: 0 | F113: -5.07 | G113: 84.097 | H113: 3.067 | I113: 117.469
A114: 2019/01/05 13:00:00 | B114: -0.039 | C114: -0.021 | D114: 5.9 | E114: 0 | F114: -4.834 | G114: 84.742 | H114: 3.618 | I114: 125.973
A115: 2019/01/05 14:00:00 | B115: -0.087 | C115: -0.034 | D115: 3.963 | E115: 0 | F115: -4.562 | G115: 84.134 | H115: 4.572 | I115: 137.62
A116: 2019/01/05 15:00:00 | B116: -0.077 | C116: -0.111 | D116: 3.861 | E116: 0 | F116: -4.589 | G116: 83.651 | H116: 4.482 | I116: 117.146
A117: 2019/01/05 16:00:00 | B117: -0.081 | C117: -0.042 | D117: 5.288 | E117: 0 | F117: -5.321 | G117: 83.999 | H117: 4.399 | I117: 117.481
A118: 2019/01/05 17:00:00 | B118: -0.062 | C118: -0.03 | D118: 4.551 | E118: 0 | F118: -5.485 | G118: 83.924 | H118: 4.695 | I118: 116.892
A119: 2019/01/05 18:00:00 | B119: -0.067 | C119: 0.053 | D119: 4.332 | E119: 0 | F119: -5.628 | G119: 84.063 | H119: 4.471 | I119: 120.337
A120: 2019/01/05 19:00:00 | B120: -0.109 | C120: 0.042 | D120: 4.965 | E120: 0 | F120: -5.441 | G120: 84.697 | H120: 4.7 | I120: 112.576
A121: 2019/01/05 20:00:00 | B121: -0.068 | C121: -0.018 | D121: 3.141 | E121: 0 | F121: -5.117 | G121: 84.863 | H121: 5.932 | I121: 129.005
A122: 2019/01/05 21:00:00 | B122: -0.098 | C122: -0.011 | D122: 2.963 | E122: 0 | F122: -4.997 | G122: 84.552 | H122: 6.972 | I122: 135.292
A123: 2019/01/05 22:00:00 | B123: -0.086 | C123: -0.061 | D123: 2.665 | E123: 0 | F123: -5.434 | G123: 84.207 | H123: 7.976 | I123: 142.32
A124: 2019/01/05 23:00:00 | B124: -0.062 | C124: -0.074 | D124: 2.381 | E124: 0 | F124: -5.729 | G124: 84.089 | H124: 6.972 | I124: 138.015
A125: 2019/01/06 00:00:00 | B125: -0.072 | C125: 0.005 | D125: 1.974 | E125: 0 | F125: -5.739 | G125: 83.977 | H125: 5.864 | I125: 130.966
A126: 2019/01/06 01:00:00 | B126: -0.071 | C126: -0.009 | D126: 5.427 | E126: 0 | F126: -5.708 | G126: 83.928 | H126: 6.026 | I126: 127.417
A127: 2019/01/06 02:00:00 | B127: -0.126 | C127: 0.015 | D127: 8.064 | E127: 0 | F127: -5.751 | G127: 83.932 | H127: 5.765 | I127: 119.999
A128: 2019/01/06 03:00:00 | B128: 0.122 | C128: 0.013 | D128: 10.861 | E128: 0 | F128: -5.257 | G128: 81.24 | H128: 5.631 | I128: 118.713
A129: 2019/01/06 04:00:00 | B129: 0.091 | C129: 0.079 | D129: 10.278 | E129: 0 | F129: -5.121 | G129: 81.243 | H129: 4.118 | I129: 110.805
A130: 2019/01/06 05:00:00 | B130: -0.123 | C130: -0.086 | D130: 10.857 | E130: 0 | F130: -5.323 | G130: 83.981 | H130: 3.936 | I130: 113.839
A131: 2019/01/06 06:00:00 | B131: -0.122 | C131: -0.013 | D131: 15.238 | E131: 0 | F131: -5.273 | G131: 84.061 | H131: 3.573 | I131: 109.052
A132: 2019/01/06 07:00:00 | B132: -0.063 | C132: -0.008 | D132: 22.489 | E132: 0 | F132: -5.319 | G132: 84.075 | H132: 5.235 | I132: 124.819
A133: 2019/01/06 08:00:00 | B133: Z | C133: Z | D133: 24.85 | E133: 0 | F133: -5.002 | G133: 84.27 | H133: 5.673 | I133: 129.691
A134: 2019/01/06 09:00:00 | B134: -0.069 | C134: 0.019 | D134: 25.132 | E134: 0 | F134: -4.538 | G134: 84.49 | H134: 5.333 | I134: 135.503
A135: 2019/01/06 10:00:00 | B135: -0.082 | C135: 0.002 | D135: 28.086 | E135: 0 | F135: -4.084 | G135: 84.791 | H135: 4.823 | I135: 134.354
A136: 2019/01/06 11:00:00 | B136: -0.076 | C136: 0.022 | D136: 27.6 | E136: 0 | F136: -3.261 | G136: 85.327 | H136: 4.545 | I136: 140.079
A137: 2019/01/06 12:00:00 | B137: -0.031 | C137: -0.001 | D137: 5.651 | E137: 0 | F137: -2.788 | G137: 85.464 | H137: 4.622 | I137: 140.252
A138: 2019/01/06 13:00:00 | B138: -0.085 | C138: 0.087 | D138: 5.101 | E138: 0 | F138: -2.232 | G138: 85.448 | H138: 5.468 | I138: 151.712
A139: 2019/01/06 14:00:00 | B139: -0.101 | C139: 0.08 | D139: 5.238 | E139: 0 | F139: -1.967 | G139: 84.989 | H139: 4.983 | I139: 150.096
A140: 2019/01/06 15:00:00 | B140: -0.053 | C140: 0.072 | D140: 5.337 | E140: 0 | F140: -1.689 | G140: 84.067 | H140: 4.405 | I140: 144.232
A141: 2019/01/06 16:00:00 | B141: -0.066 | C141: -0.003 | D141: 5.635 | E141: 0 | F141: -1.399 | G141: 82.628 | H141: 3.882 | I141: 140.685
A142: 2019/01/06 17:00:00 | B142: -0.047 | C142: 0.129 | D142: 5.285 | E142: 0 | F142: -1.252 | G142: 82.115 | H142: 2.656 | I142: 135.112
A143: 2019/01/06 18:00:00 | B143: -0.075 | C143: 0.154 | D143: 4.746 | E143: 0 | F143: -1.295 | G143: 81.82 | H143: 2.089 | I143: 160.669
A144: 2019/01/06 19:00:00 | B144: -0.082 | C144: 0.167 | D144: 3.839 | E144: 0 | F144: -1.08 | G144: 80.693 | H144: 2.132 | I144: 212.983
A145: 2019/01/06 20:00:00 | B145: -0.055 | C145: 0.233 | D145: 2.228 | E145: 0 | F145: -0.291 | G145: 78.524 | H145: 3.56 | I145: 258.001
A146: 2019/01/06 21:00:00 | B146: -0.036 | C146: 0.208 | D146: 2.217 | E146: 0 | F146: -0.59 | G146: 78.258 | H146: 4.977 | I146: 287.999
A147: 2019/01/06 22:00:00 | B147: -0.043 | C147: 0.161 | D147: 3.979 | E147: 0 | F147: -1.863 | G147: 79.644 | H147: 4.448 | I147: 289.269
A148: 2019/01/06 23:00:00 | B148: -0.04 | C148: 0.11 | D148: 7.024 | E148: 0 | F148: -2.319 | G148: 80.47 | H148: 4.656 | I148: 289.228
A149: 2019/01/07 00:00:00 | B149: -0.083 | C149: 0.09 | D149: 9.704 | E149: 0 | F149: -2.883 | G149: 82.751 | H149: 3.836 | I149: 293.588
A150: 2019/01/07 01:00:00 | B150: -0.019 | C150: 0.116 | D150: 10.203 | E150: 0 | F150: -3.356 | G150: 84.386 | H150: 3.471 | I150: 297.466
A151: 2019/01/07 02:00:00 | B151: -0.052 | C151: 0.079 | D151: 9.325 | E151: 0 | F151: -3.807 | G151: 82.92 | H151: 3.444 | I151: 307.505
A152: 2019/01/07 03:00:00 | B152: 0.005 | C152: 0.196 | D152: 7.624 | E152: 0 | F152: -3.573 | G152: 67.426 | H152: 3.07 | I152: 300.014
A153: 2019/01/07 04:00:00 | B153: -0.073 | C153: 0.066 | D153: 8.126 | E153: 0 | F153: -5.194 | G153: 81.269 | H153: 3.652 | I153: 312.78
A154: 2019/01/07 05:00:00 | B154: -0.063 | C154: 0.013 | D154: 5.394 | E154: 0 | F154: -5.964 | G154: 81.571 | H154: 3.681 | I154: 311.814
A155: 2019/01/07 06:00:00 | B155: -0.066 | C155: 0.077 | D155: 5.089 | E155: 0 | F155: -6.39 | G155: 78.828 | H155: 4.383 | I155: 316.878
A156: 2019/01/07 07:00:00 | B156: Z | C156: Z | D156: 5.025 | E156: 0 | F156: -6.256 | G156: 77.942 | H156: 4.203 | I156: 317.869
A157: 2019/01/07 08:00:00 | B157: -0.031 | C157: 0.051 | D157: 3.065 | E157: 0 | F157: -6.609 | G157: 76.174 | H157: 4.428 | I157: 319.267
A158: 2019/01/07 09:00:00 | B158: -0.012 | C158: 0.075 | D158: 2.687 | E158: 0 | F158: -7.165 | G158: 78.653 | H158: 4.555 | I158: 321.551
A159: 2019/01/07 10:00:00 | B159: -0.026 | C159: 0.057 | D159: 2.948 | E159: 0 | F159: -8.16 | G159: 78.758 | H159: 4.119 | I159: 315.379
A160: 2019/01/07 11:00:00 | B160: -0.005 | C160: -0.03 | D160: 3.081 | E160: 0 | F160: -9.966 | G160: 74.494 | H160: 3.989 | I160: 307.248
A161: 2019/01/07 12:00:00 | B161: 0.179 | C161: -0.017 | D161: 3.833 | E161: 0 | F161: -9.903 | G161: 68.219 | H161: 3.597 | I161: 309.785
A162: 2019/01/07 13:00:00 | B162: 0.092 | C162: 0.004 | D162: 2.498 | E162: 0 | F162: -10.795 | G162: 64.948 | H162: 5.086 | I162: 317.148
A163: 2019/01/07 14:00:00 | B163: 0.033 | C163: -0.056 | D163: 3.064 | E163: 0 | F163: -12.279 | G163: 67.72 | H163: 5.644 | I163: 319.235
A164: 2019/01/07 15:00:00 | B164: 0.293 | C164: -0.052 | D164: 3.178 | E164: 0 | F164: -12.491 | G164: 67.587 | H164: 4.914 | I164: 317.453
A165: 2019/01/07 16:00:00 | B165: 0.453 | C165: -0.161 | D165: 3.183 | E165: 0 | F165: -12.688 | G165: 65.337 | H165: 4.387 | I165: 310.302
A166: 2019/01/07 17:00:00 | B166: 0.211 | C166: -0.133 | D166: 3.169 | E166: 0 | F166: -13.756 | G166: 63.91 | H166: 4.179 | I166: 312.75
A167: 2019/01/07 18:00:00 | B167: 0.032 | C167: -0.175 | D167: 2.618 | E167: 0 | F167: -14.901 | G167: 63.471 | H167: 3.611 | I167: 303.545
A168: 2019/01/07 19:00:00 | B168: 0.066 | C168: -0.171 | D168: 2.824 | E168: 0 | F168: -15.6 | G168: 63.518 | H168: 3.704 | I168: 313.466
A169: 2019/01/07 20:00:00 | B169: 0.197 | C169: -0.197 | D169: 4.207 | E169: 0 | F169: -15.723 | G169: 64.906 | H169: 3.999 | I169: 313.16
A170: 2019/01/07 21:00:00 | B170: 0.035 | C170: -0.246 | D170: 4.47 | E170: 0 | F170: -16.022 | G170: 65.927 | H170: 3.122 | I170: 304.91
A171: 2019/01/07 22:00:00 | B171: 0.023 | C171: -0.183 | D171: 4.028 | E171: 0 | F171: -15.992 | G171: 65.655 | H171: 4.141 | I171: 314.389
A172: 2019/01/07 23:00:00 | B172: 0.083 | C172: -0.247 | D172: 3.624 | E172: 0 | F172: -16.136 | G172: 66.412 | H172: 4.24 | I172: 316.389
A173: 2019/01/08 00:00:00 | B173: -0.078 | C173: -0.226 | D173: 2.704 | E173: 0 | F173: -16.394 | G173: 66.035 | H173: 4.662 | I173: 318.777
A174: 2019/01/08 01:00:00 | B174: -0.046 | C174: -0.219 | D174: 2.536 | E174: 0 | F174: -16.858 | G174: 67.05 | H174: 4.882 | I174: 319.473
A175: 2019/01/08 02:00:00 | B175: -0.054 | C175: -0.239 | D175: 2.534 | E175: 0 | F175: -17.072 | G175: 66.845 | H175: 4.312 | I175: 313.453
A176: 2019/01/08 03:00:00 | B176: -0.015 | C176: -0.168 | D176: 2.726 | E176: 0 | F176: -17.472 | G176: 67.08 | H176: 3.596 | I176: 301.607
A177: 2019/01/08 04:00:00 | B177: -0.005 | C177: -0.024 | D177: 2.897 | E177: 0 | F177: -17.907 | G177: 67.191 | H177: 3.619 | I177: 301.455
A178: 2019/01/08 05:00:00 | B178: -0.03 | C178: 0.062 | D178: 2.72 | E178: 0 | F178: -18.281 | G178: 66.854 | H178: 3.633 | I178: 306.999
A179: 2019/01/08 06:00:00 | B179: Z | C179: Z | D179: 3.052 | E179: 0 | F179: -18.797 | G179: 67.488 | H179: 3.201 | I179: 303.816
A180: 2019/01/08 07:00:00 | B180: 0.068 | C180: 0.268 | D180: 3.067 | E180: 0 | F180: -19.462 | G180: 66.658 | H180: 3.112 | I180: 305.408
A181: 2019/01/08 08:00:00 | B181: 0.049 | C181: 0.399 | D181: 3.125 | E181: 0 | F181: -19.986 | G181: 66.304 | H181: 5.344 | I181: 291.668
A182: 2019/01/08 09:00:00 | B182: 0.105 | C182: 0.366 | D182: 3.508 | E182: 0 | F182: -20.327 | G182: 66.595 | H182: 4.56 | I182: 293.624
A183: 2019/01/08 10:00:00 | B183: 0.081 | C183: 0.517 | D183: 3.642 | E183: 0 | F183: -20.402 | G183: 66.047 | H183: 3.359 | I183: 303.119
A184: 2019/01/08 11:00:00 | B184: 0.117 | C184: 0.552 | D184: 3.039 | E184: 0 | F184: -20.008 | G184: 64.508 | H184: 3.71 | I184: 311.875
A185: 2019/01/08 12:00:00 | B185: 0.161 | C185: 0.464 | D185: 2.114 | E185: 0 | F185: -19.404 | G185: 63.246 | H185: 3.391 | I185: 307.04
A186: 2019/01/08 13:00:00 | B186: 0.154 | C186: 0.299 | D186: 1.649 | E186: 0 | F186: -18.774 | G186: 62.008 | H186: 3.842 | I186: 315.674
A187: 2019/01/08 14:00:00 | B187: 0.199 | C187: 0.123 | D187: 1.646 | E187: 0 | F187: -17.912 | G187: 60.186 | H187: 3.062 | I187: 308.929
A188: 2019/01/08 15:00:00 | B188: 0.339 | C188: -0.014 | D188: 1.645 | E188: 0 | F188: -17.296 | G188: 59.68 | H188: 2.922 | I188: 314.224
A189: 2019/01/08 16:00:00 | B189: 0.23 | C189: -0.248 | D189: 1.573 | E189: 0 | F189: -17.065 | G189: 59.145 | H189: 2.95 | I189: 316.752
A190: 2019/01/08 17:00:00 | B190: 0.222 | C190: -0.305 | D190: 1.65 | E190: 0 | F190: -17.414 | G190: 59.645 | H190: 2.091 | I190: 306.281
A191: 2019/01/08 18:00:00 | B191: 0.2 | C191: -0.24 | D191: 1.713 | E191: 0 | F191: -19.306 | G191: 62.521 | H191: 2.427 | I191: 272.703
A192: 2019/01/08 19:00:00 | B192: 0.138 | C192: -0.185 | D192: 1.952 | E192: 0 | F192: -20.364 | G192: 63.963 | H192: 1.329 | I192: 244.99
A193: 2019/01/08 20:00:00 | B193: 0.055 | C193: -0.021 | D193: 3.066 | E193: 0 | F193: -21.965 | G193: 65.487 | H193: 1.974 | I193: 243.653
A194: 2019/01/08 21:00:00 | B194: 0.131 | C194: 0.24 | D194: 4.296 | E194: 0 | F194: -22.156 | G194: 65.999 | H194: 1.431 | I194: 236.061
A195: 2019/01/08 22:00:00 | B195: 0.094 | C195: 0.446 | D195: 6.692 | E195: 0 | F195: -22.277 | G195: 66.353 | H195: 1.397 | I195: 212.391
A196: 2019/01/08 23:00:00 | B196: 0.177 | C196: 0.617 | D196: 9.133 | E196: 0 | F196: -22.314 | G196: 67.646 | H196: 1.122 | I196: 213.28
A197: 2019/01/09 00:00:00 | B197: 0.187 | C197: 0.595 | D197: 8.912 | E197: 0 | F197: -22.28 | G197: 68.051 | H197: 1.037 | I197: 193.44
A198: 2019/01/09 01:00:00 | B198: 0.158 | C198: 0.462 | D198: 7.256 | E198: 0 | F198: -21.499 | G198: 68.571 | H198: 0.877 | I198: 163.706
A199: 2019/01/09 02:00:00 | B199: 0.101 | C199: 0.14 | D199: 5.201 | E199: 0 | F199: -18.97 | G199: 69.147 | H199: 2.513 | I199: 119.606
A200: 2019/01/09 03:00:00 | B200: 0.071 | C200: 0.124 | D200: 2.857 | E200: 0 | F200: -18.567 | G200: 66.996 | H200: 3.814 | I200: 129.908
A201: 2019/01/09 04:00:00 | B201: 0.082 | C201: 0.053 | D201: 1.933 | E201: 0 | F201: -17.48 | G201: 64.299 | H201: 4.718 | I201: 134.23
... 556 more rows

Sheet Maidstone
A1: =Kerrobert!A1 -> Group: Global WYAMZ - Monthly Monthly: 01/2019 Type: AVG 1 Hr.
A3: Date & Time | B3: Maidstone | C3: Maidstone | D3: Maidstone | E3: Maidstone | F3: Maidstone | G3: Maidstone | H3: Maidstone | I3: Maidstone | J3: Maidstone | K3: Maidstone | L3: Maidstone
B4: SO2 | C4: NO | D4: NO2 | E4: NOX | F4: H2S | G4: PM25 | H4: PRECIP | I4: TEMPERAT | J4: RH | K4: WS | L4: WD
B5: ppb | C5: ppb | D5: ppb | E5: ppb | F5: ppb | G5: ug/m3(L) | H5: mm | I5: C° | J5: %RH | K5: m/s | L5: Deg
A6: 2019/01/01 01:00:00 | B6: 0.827 | C6: 0.151 | D6: 7.109 | E6: 7.263 | F6: 0.132 | G6: 6.016 | H6: 0 | I6: -28.348 | J6: 69.621 | K6: 1.262 | L6: 153.893
A7: 2019/01/01 02:00:00 | B7: 0.867 | C7: 0.237 | D7: 6.258 | E7: 6.499 | F7: 0.16 | G7: 6.557 | H7: 0 | I7: -26.082 | J7: 71.087 | K7: 1.883 | L7: 135.031
A8: 2019/01/01 03:00:00 | B8: 1.89 | C8: 0.173 | D8: 5.943 | E8: 6.12 | F8: -0.041 | G8: 6.122 | H8: 0 | I8: -25.668 | J8: 71.052 | K8: 1.962 | L8: 128.959
A9: 2019/01/01 04:00:00 | B9: 1.834 | C9: 0.212 | D9: 5.649 | E9: 5.865 | F9: 0.03 | G9: 5.989 | H9: 0 | I9: -24.243 | J9: 71.633 | K9: 2.141 | L9: 139.436
A10: 2019/01/01 05:00:00 | B10: 1.3 | C10: 0.224 | D10: 5.926 | E10: 6.155 | F10: 0.019 | G10: 5.789 | H10: 0 | I10: -22.158 | J10: 72.63 | K10: 2.778 | L10: 132.569
A11: 2019/01/01 06:00:00 | B11: 0.895 | C11: 0.148 | D11: 5.487 | E11: 5.639 | F11: -0.084 | G11: 6.07 | H11: 0 | I11: -18.994 | J11: 74.041 | K11: 3.528 | L11: 147.405
A12: 2019/01/01 07:00:00 | B12: 0.144 | C12: 0.137 | D12: 5.407 | E12: 5.55 | F12: -0.057 | G12: 3.95 | H12: 0 | I12: -15.497 | J12: 71.11 | K12: 3.205 | L12: 150.101
A13: 2019/01/01 08:00:00 | B13: 0.111 | C13: 0.147 | D13: 4.507 | E13: 4.66 | F13: -0.095 | G13: 2.869 | H13: 0.12 | I13: -13.531 | J13: 72.871 | K13: 3.055 | L13: 157.384
A14: 2019/01/01 09:00:00 | B14: 0.088 | C14: 0.252 | D14: 3.83 | E14: 4.087 | F14: -0.057 | G14: 2.789 | H14: 0 | I14: -12.403 | J14: 75.761 | K14: 4.192 | L14: 165.665
A15: 2019/01/01 10:00:00 | B15: 0.074 | C15: 0.22 | D15: 3.656 | E15: 3.881 | F15: -0.03 | G15: 2.774 | H15: 0.01 | I15: -11.367 | J15: 77.676 | K15: 2.296 | L15: 179.211
A16: 2019/01/01 11:00:00 | B16: 0.118 | C16: 1.118 | D16: 4.256 | E16: 5.381 | F16: 0.003 | G16: 2.653 | H16: 0 | I16: -9.884 | J16: 77.421 | K16: 0.928 | L16: 173.922
A17: 2019/01/01 12:00:00 | B17: 0.473 | C17: 0.786 | D17: 3.258 | E17: 4.048 | F17: 0.057 | G17: 2.46 | H17: 0 | I17: -7.405 | J17: 75.318 | K17: 1.166 | L17: 268.744
A18: 2019/01/01 13:00:00 | B18: Z | C18: Z | D18: Z | E18: Z | F18: Z | G18: 2.179 | H18: 0 | I18: -4.9 | J18: 74.355 | K18: 3.85 | L18: 293.674
A19: 2019/01/01 14:00:00 | B19: 0.474 | C19: 0.907 | D19: 3.512 | E19: 4.426 | F19: 0.216 | G19: 0.779 | H19: 0 | I19: -1.395 | J19: 68.188 | K19: 5.106 | L19: 287.825
A20: 2019/01/01 15:00:00 | B20: 0.128 | C20: 0.49 | D20: 2.721 | E20: 3.217 | F20: -0.087 | G20: 0.371 | H20: 0 | I20: -0.085 | J20: 65.379 | K20: 5.473 | L20: 291.294
A21: 2019/01/01 16:00:00 | B21: -0.125 | C21: 0.335 | D21: 2.435 | E21: 2.775 | F21: -0.051 | G21: 0.307 | H21: 0 | I21: 0.178 | J21: 66.08 | K21: 6.452 | L21: 299.883
A22: 2019/01/01 17:00:00 | B22: -0.123 | C22: 0.126 | D22: 2.141 | E22: 2.272 | F22: -0.052 | G22: 0.265 | H22: 0 | I22: -0.228 | J22: 66.584 | K22: 5.406 | L22: 292.584
A23: 2019/01/01 18:00:00 | B23: -0.005 | C23: 0.089 | D23: 1.962 | E23: 2.056 | F23: -0.033 | G23: 0.236 | H23: 0 | I23: -0.855 | J23: 67.106 | K23: 4.616 | L23: 290.944
A24: 2019/01/01 19:00:00 | B24: -0.11 | C24: 0.026 | D24: 1.928 | E24: 1.958 | F24: -0.056 | G24: 0.238 | H24: 0 | I24: -1.395 | J24: 67.475 | K24: 4.697 | L24: 284.821
A25: 2019/01/01 20:00:00 | B25: -0.021 | C25: 0.106 | D25: 1.863 | E25: 1.973 | F25: -0.084 | G25: 0.168 | H25: 0 | I25: -1.611 | J25: 67.762 | K25: 4.766 | L25: 286.177
A26: 2019/01/01 21:00:00 | B26: -0.118 | C26: 0.089 | D26: 1.97 | E26: 2.062 | F26: -0.037 | G26: 0.008 | H26: 0 | I26: -1.88 | J26: 68.551 | K26: 4.107 | L26: 284.708
A27: 2019/01/01 22:00:00 | B27: 0.017 | C27: 0.187 | D27: 2.417 | E27: 2.606 | F27: 0.014 | G27: 0.071 | H27: 0 | I27: -2.766 | J27: 70.776 | K27: 3.713 | L27: 286.811
A28: 2019/01/01 23:00:00 | B28: 0.579 | C28: 0.121 | D28: 3.477 | E28: 3.602 | F28: 0.094 | G28: 0.243 | H28: 0 | I28: -3.469 | J28: 72.436 | K28: 3.1 | L28: 275.92
A29: 2019/01/02 00:00:00 | B29: 0.6 | C29: 0.064 | D29: 3.597 | E29: 3.663 | F29: -0.025 | G29: 0.228 | H29: 0 | I29: -4.044 | J29: 73.708 | K29: 3.095 | L29: 267.008
A30: 2019/01/02 01:00:00 | B30: 0.235 | C30: 0.06 | D30: 3.026 | E30: 3.089 | F30: -0.019 | G30: 0.147 | H30: 0 | I30: -3.56 | J30: 73.473 | K30: 3.605 | L30: 275.476
A31: 2019/01/02 02:00:00 | B31: 0.171 | C31: 0.062 | D31: 2.928 | E31: 2.993 | F31: 0.01 | G31: 0.159 | H31: 0 | I31: -4.852 | J31: 75.93 | K31: 3.276 | L31: 262.036
A32: 2019/01/02 03:00:00 | B32: 0.101 | C32: 0.086 | D32: 3.17 | E32: 3.258 | F32: -0.003 | G32: 0.419 | H32: 0 | I32: -5.954 | J32: 78.304 | K32: 2.7 | L32: 259.557
A33: 2019/01/02 04:00:00 | B33: 0.105 | C33: 0.08 | D33: 4.831 | E33: 4.914 | F33: -0.02 | G33: 0.764 | H33: 0 | I33: -7.005 | J33: 79.818 | K33: 2.369 | L33: 253.4
A34: 2019/01/02 05:00:00 | B34: 0.141 | C34: 0.157 | D34: 6.799 | E34: 6.958 | F34: 0.092 | G34: 1.202 | H34: 0 | I34: -7.271 | J34: 80.446 | K34: 0.925 | L34: 225.126
A35: 2019/01/02 06:00:00 | B35: 0.058 | C35: 0.1 | D35: 6.261 | E35: 6.362 | F35: 0.043 | G35: 1.442 | H35: 0 | I35: -7.252 | J35: 79.499 | K35: 0.884 | L35: 167.14
A36: 2019/01/02 07:00:00 | B36: 0.035 | C36: 0.208 | D36: 12.624 | E36: 12.833 | F36: 0.115 | G36: 2.021 | H36: 0 | I36: -6.174 | J36: 79.981 | K36: 0.914 | L36: 143.345
A37: 2019/01/02 08:00:00 | B37: 0.172 | C37: 0.299 | D37: 12.538 | E37: 12.837 | F37: 0.377 | G37: 2.344 | H37: 0 | I37: -5.483 | J37: 80.187 | K37: 1.197 | L37: 151.53
A38: 2019/01/02 09:00:00 | B38: 0.018 | C38: 0.209 | D38: 8.37 | E38: 8.58 | F38: 0.588 | G38: 2.185 | H38: 0 | I38: -6.521 | J38: 81.348 | K38: 0.565 | L38: 160.639
A39: 2019/01/02 10:00:00 | B39: 0.069 | C39: 1.145 | D39: 9.827 | E39: 10.972 | F39: 0.339 | G39: 2.188 | H39: 0 | I39: -6.721 | J39: 81.392 | K39: 0.732 | L39: 154.223
A40: 2019/01/02 11:00:00 | B40: 0.108 | C40: 1.291 | D40: 9.091 | E40: 10.382 | F40: 0.211 | G40: 1.867 | H40: 0 | I40: -4.781 | J40: 80.212 | K40: 0.893 | L40: 161.381
A41: 2019/01/02 12:00:00 | B41: Z | C41: Z | D41: Z | E41: Z | F41: Z | G41: 0.302 | H41: 0 | I41: 3.422 | J41: 66.947 | K41: 0.994 | L41: 256.966
A42: 2019/01/02 13:00:00 | B42: 1.013 | C42: 0.951 | D42: 4.714 | E42: 5.665 | F42: 0.245 | G42: 0.247 | H42: 0 | I42: 4.063 | J42: 64.82 | K42: 2.214 | L42: 255.873
A43: 2019/01/02 14:00:00 | B43: 0.717 | C43: 1.215 | D43: 4.651 | E43: 5.865 | F43: 0.034 | G43: 0.183 | H43: 0 | I43: 4.324 | J43: 64.124 | K43: 1.797 | L43: 268.672
A44: 2019/01/02 15:00:00 | B44: 0.618 | C44: 1.793 | D44: 5.985 | E44: 7.778 | F44: 0.07 | G44: 0.159 | H44: 0 | I44: 4.798 | J44: 62.214 | K44: 1.881 | L44: 276.784
A45: 2019/01/02 16:00:00 | B45: 0.533 | C45: 1.67 | D45: 4.351 | E45: 6.021 | F45: 0.102 | G45: 0.147 | H45: 0 | I45: 5.938 | J45: 57.443 | K45: 2.365 | L45: 291.111
A46: 2019/01/02 17:00:00 | B46: 0.4 | C46: 0.541 | D46: 4.055 | E46: 4.596 | F46: 0.067 | G46: 0.133 | H46: 0 | I46: 5.991 | J46: 58.791 | K46: 2.674 | L46: 279.424
A47: 2019/01/02 18:00:00 | B47: 0.352 | C47: 0.023 | D47: 5.008 | E47: 5.03 | F47: 0.044 | G47: 0.184 | H47: 0 | I47: 5.451 | J47: 60.08 | K47: 2.814 | L47: 286.246
A48: 2019/01/02 19:00:00 | B48: 0.531 | C48: -0.006 | D48: 5.866 | E48: 5.86 | F48: -0.026 | G48: 0.192 | H48: 0 | I48: 4.638 | J48: 63.345 | K48: 1.425 | L48: 282.165
A49: 2019/01/02 20:00:00 | B49: 0.619 | C49: 0.081 | D49: 6.224 | E49: 6.305 | F49: 0.053 | G49: 0.227 | H49: 0 | I49: 3.19 | J49: 68.686 | K49: 1.624 | L49: 251.415
A50: 2019/01/02 21:00:00 | B50: 0.562 | C50: 0.029 | D50: 6.37 | E50: 6.4 | F50: 0.079 | G50: 0.267 | H50: 0 | I50: 2.618 | J50: 69.703 | K50: 2.126 | L50: 258.03
A51: 2019/01/02 22:00:00 | B51: 0.607 | C51: 0.048 | D51: 6.001 | E51: 6.05 | F51: 0.26 | G51: 0.301 | H51: 0 | I51: 2.695 | J51: 68.154 | K51: 2.8 | L51: 263.374
A52: 2019/01/02 23:00:00 | B52: 0.545 | C52: 0.068 | D52: 8.494 | E52: 8.562 | F52: 0.099 | G52: 0.328 | H52: 0 | I52: 2.274 | J52: 70.421 | K52: 2.342 | L52: 258.371
A53: 2019/01/03 00:00:00 | B53: 0.507 | C53: 0.012 | D53: 5.696 | E53: 5.709 | F53: 0.137 | G53: 0.393 | H53: 0 | I53: 2.042 | J53: 71.407 | K53: 1.769 | L53: 250.13
A54: 2019/01/03 01:00:00 | B54: 0.245 | C54: 0.087 | D54: 4.362 | E54: 4.448 | F54: 0.108 | G54: 0.387 | H54: 0 | I54: 2.554 | J54: 70.626 | K54: 2.03 | L54: 265.887
A55: 2019/01/03 02:00:00 | B55: 0.481 | C55: 0.045 | D55: 5.824 | E55: 5.869 | F55: 0.091 | G55: 0.379 | H55: 0 | I55: 2.835 | J55: 69.55 | K55: 1.807 | L55: 273.285
A56: 2019/01/03 03:00:00 | B56: 0.328 | C56: 0.022 | D56: 4.01 | E56: 4.033 | F56: 0.113 | G56: 0.408 | H56: 0 | I56: 3.158 | J56: 68.146 | K56: 2.277 | L56: 270.79
A57: 2019/01/03 04:00:00 | B57: 0.465 | C57: 0.076 | D57: 4.883 | E57: 4.958 | F57: 0.07 | G57: 0.472 | H57: 0 | I57: 3.403 | J57: 67.382 | K57: 2.75 | L57: 278.021
A58: 2019/01/03 05:00:00 | B58: 0.434 | C58: 0.01 | D58: 5.05 | E58: 5.06 | F58: 0.113 | G58: 0.422 | H58: 0 | I58: 3.265 | J58: 70.521 | K58: 2.243 | L58: 269.508
A59: 2019/01/03 06:00:00 | B59: 0.279 | C59: 0.029 | D59: 5.876 | E59: 5.906 | F59: 0.152 | G59: 0.335 | H59: 0 | I59: 2.683 | J59: 75.398 | K59: 1.204 | L59: 265.68
A60: 2019/01/03 07:00:00 | B60: 0.489 | C60: 0.048 | D60: 3.693 | E60: 3.742 | F60: 0.018 | G60: 0.308 | H60: 0 | I60: 2.991 | J60: 74.49 | K60: 2.036 | L60: 283.84
A61: 2019/01/03 08:00:00 | B61: 0.326 | C61: 0.035 | D61: 3.244 | E61: 3.279 | F61: 0.033 | G61: 0.256 | H61: 0 | I61: 2.432 | J61: 72.865 | K61: 2.03 | L61: 279.076
A62: 2019/01/03 09:00:00 | B62: 0.146 | C62: 0.073 | D62: 4.007 | E62: 4.08 | F62: 0.133 | G62: 0.331 | H62: 0 | I62: -0.785 | J62: 76.218 | K62: 0.786 | L62: 211.621
A63: 2019/01/03 10:00:00 | B63: -0.127 | C63: 0.146 | D63: 3.809 | E63: 3.955 | F63: 0.174 | G63: 0.39 | H63: 0 | I63: -3.076 | J63: 81.01 | K63: 0.545 | L63: 171.549
A64: 2019/01/03 11:00:00 | B64: Z | C64: Z | D64: Z | E64: Z | F64: Z | G64: 0.358 | H64: 0 | I64: -1.983 | J64: 76.072 | K64: 0.942 | L64: 222.661
A65: 2019/01/03 12:00:00 | B65: 0.626 | C65: 1.606 | D65: 4.93 | E65: 6.536 | F65: 0.265 | G65: 0.444 | H65: 0 | I65: -0.176 | J65: 70.174 | K65: 2.013 | L65: 266.072
A66: 2019/01/03 13:00:00 | B66: 0.914 | C66: 1.899 | D66: 4.587 | E66: 6.486 | F66: 0.185 | G66: 0.632 | H66: 0 | I66: 0.603 | J66: 67.984 | K66: 2.576 | L66: 264.532
A67: 2019/01/03 14:00:00 | B67: 1.04 | C67: 2.033 | D67: 4.653 | E67: 6.686 | F67: 0.086 | G67: 0.716 | H67: 0 | I67: 0.426 | J67: 68.668 | K67: 2.63 | L67: 258.915
A68: 2019/01/03 15:00:00 | B68: 1.237 | C68: 2.448 | D68: 5.194 | E68: 7.642 | F68: -0.009 | G68: 0.583 | H68: 0 | I68: 0.946 | J68: 67.457 | K68: 1.877 | L68: 260.703
A69: 2019/01/03 16:00:00 | B69: 1.059 | C69: 1.761 | D69: 6.382 | E69: 8.143 | F69: 0.038 | G69: 0.563 | H69: 0 | I69: 0.483 | J69: 65.647 | K69: 1.628 | L69: 279.381
A70: 2019/01/03 17:00:00 | B70: 0.969 | C70: 2.488 | D70: 6.619 | E70: 9.105 | F70: 0.057 | G70: 0.734 | H70: 0 | I70: -0.341 | J70: 65.262 | K70: 1.618 | L70: 286.288
A71: 2019/01/03 18:00:00 | B71: 0.337 | C71: 0.071 | D71: 5.692 | E71: 5.763 | F71: -0.017 | G71: 1.477 | H71: 0 | I71: -0.907 | J71: 67.103 | K71: 2.156 | L71: 268.344
A72: 2019/01/03 19:00:00 | B72: 0.259 | C72: 0.023 | D72: 5.984 | E72: 6.006 | F72: -0.053 | G72: 1.808 | H72: 0 | I72: -0.649 | J72: 67.132 | K72: 2.233 | L72: 263.566
A73: 2019/01/03 20:00:00 | B73: 0.283 | C73: 0.09 | D73: 7.167 | E73: 7.256 | F73: 0.022 | G73: 1.997 | H73: 0 | I73: -0.796 | J73: 68.072 | K73: 1.046 | L73: 286.105
A74: 2019/01/03 21:00:00 | B74: 0.267 | C74: 0.06 | D74: 7.699 | E74: 7.758 | F74: 0.001 | G74: 1.996 | H74: 0 | I74: -0.827 | J74: 67.994 | K74: 1.115 | L74: 289.725
A75: 2019/01/03 22:00:00 | B75: 0.397 | C75: 0.013 | D75: 9.095 | E75: 9.107 | F75: -0.003 | G75: 1.7 | H75: 0 | I75: -0.72 | J75: 65.723 | K75: 1.409 | L75: 309.288
A76: 2019/01/03 23:00:00 | B76: 0.672 | C76: 0.137 | D76: 7.99 | E76: 8.127 | F76: 0.093 | G76: 1.579 | H76: 0 | I76: -0.837 | J76: 65.92 | K76: 0.409 | L76: 324.451
A77: 2019/01/04 00:00:00 | B77: 0.612 | C77: 0.195 | D77: 8.097 | E77: 8.291 | F77: -0.003 | G77: 1.996 | H77: 0 | I77: -1.047 | J77: 67.67 | K77: 0.934 | L77: 251.138
A78: 2019/01/04 01:00:00 | B78: 0.648 | C78: 0.074 | D78: 8.66 | E78: 8.734 | F78: 0.001 | G78: 5.863 | H78: 0 | I78: -1.36 | J78: 70.259 | K78: 0.55 | L78: 269.121
A79: 2019/01/04 02:00:00 | B79: 0.715 | C79: 0.144 | D79: 10.287 | E79: 10.431 | F79: -0.026 | G79: 9.107 | H79: 0 | I79: -1.264 | J79: 69.646 | K79: 0.375 | L79: 295.203
A80: 2019/01/04 03:00:00 | B80: 0.703 | C80: 0.064 | D80: 9.888 | E80: 9.952 | F80: 0.044 | G80: 10.694 | H80: 0 | I80: -1.282 | J80: 69.101 | K80: 0.204 | L80: 274.425
A81: 2019/01/04 04:00:00 | B81: 0.507 | C81: 0.135 | D81: 9.754 | E81: 9.889 | F81: 0.077 | G81: 11.781 | H81: 0 | I81: -1.95 | J81: 73.355 | K81: 0.159 | L81: 122.241
A82: 2019/01/04 05:00:00 | B82: 0.48 | C82: 0.098 | D82: 9.919 | E82: 10.017 | F82: 0.075 | G82: 12.038 | H82: 0 | I82: -1.844 | J82: 73.006 | K82: 0.158 | L82: 127.459
A83: 2019/01/04 06:00:00 | B83: 0.363 | C83: 0.108 | D83: 9.167 | E83: 9.275 | F83: 0.032 | G83: 12.831 | H83: 0 | I83: -1.916 | J83: 73.581 | K83: 0.146 | L83: 147.862
A84: 2019/01/04 07:00:00 | B84: 0.322 | C84: 0.123 | D84: 9.397 | E84: 9.52 | F84: -0.058 | G84: 11.491 | H84: 0 | I84: -2.047 | J84: 73.896 | K84: 0.066 | L84: 26.321
A85: 2019/01/04 08:00:00 | B85: 0.369 | C85: 0.075 | D85: 10.708 | E85: 10.783 | F85: 0.066 | G85: 12.537 | H85: 0 | I85: -2.297 | J85: 74.057 | K85: 0.354 | L85: 184.176
A86: 2019/01/04 09:00:00 | B86: 0.269 | C86: 0.169 | D86: 12.759 | E86: 12.928 | F86: 0.072 | G86: 15.623 | H86: 0 | I86: -3.086 | J86: 76.74 | K86: 0.037 | L86: 313.415
A87: 2019/01/04 10:00:00 | B87: Z | C87: Z | D87: Z | E87: Z | F87: Z | G87: 14.097 | H87: 0 | I87: -2.786 | J87: 75.029 | K87: 0.648 | L87: 153.616
A88: 2019/01/04 11:00:00 | B88: 0.513 | C88: 1.477 | D88: 11.79 | E88: 13.265 | F88: 0.134 | G88: 10.519 | H88: 0 | I88: -2.793 | J88: 75.741 | K88: 0.812 | L88: 104.7
A89: 2019/01/04 12:00:00 | B89: 0.805 | C89: 1.761 | D89: 9.172 | E89: 10.933 | F89: -0.034 | G89: 7.17 | H89: 0 | I89: -2.846 | J89: 75.339 | K89: 1.84 | L89: 68.367
A90: 2019/01/04 13:00:00 | B90: 0.779 | C90: 0.865 | D90: 6.121 | E90: 6.986 | F90: -0.111 | G90: 4.376 | H90: 0 | I90: -3.021 | J90: 82.293 | K90: 2.486 | L90: 32.039
A91: 2019/01/04 14:00:00 | B91: 0.402 | C91: 1.022 | D91: 5.285 | E91: 6.306 | F91: -0.123 | G91: 3.1 | H91: 0 | I91: -3.114 | J91: 83.57 | K91: 2.454 | L91: 34.973
A92: 2019/01/04 15:00:00 | B92: 0.195 | C92: 0.432 | D92: 2.875 | E92: 3.307 | F92: -0.192 | G92: 1.635 | H92: 0 | I92: -3.578 | J92: 83.319 | K92: 2.792 | L92: 52.381
A93: 2019/01/04 16:00:00 | B93: 0.269 | C93: 0.199 | D93: 1.754 | E93: 1.955 | F93: -0.172 | G93: 1.25 | H93: 0 | I93: -3.254 | J93: 84.005 | K93: 2.147 | L93: 55.945
A94: 2019/01/04 17:00:00 | B94: 0.244 | C94: 0.108 | D94: 2.226 | E94: 2.333 | F94: -0.131 | G94: 1.176 | H94: 0 | I94: -3.034 | J94: 83.611 | K94: 2.064 | L94: 17.904
A95: 2019/01/04 18:00:00 | B95: 0.208 | C95: 0.101 | D95: 2.445 | E95: 2.545 | F95: -0.134 | G95: 1.291 | H95: 0 | I95: -3.209 | J95: 83.66 | K95: 1.667 | L95: 5.964
A96: 2019/01/04 19:00:00 | B96: 0.187 | C96: 0.027 | D96: 2.996 | E96: 3.024 | F96: -0.078 | G96: 1.941 | H96: 0 | I96: -3.118 | J96: 82.995 | K96: 1.052 | L96: 353.481
A97: 2019/01/04 20:00:00 | B97: 0.275 | C97: 0.075 | D97: 4.002 | E97: 4.076 | F97: -0.02 | G97: 4.423 | H97: 0 | I97: -3.985 | J97: 81.031 | K97: 1.857 | L97: 342.477
A98: 2019/01/04 21:00:00 | B98: 0.336 | C98: 0.207 | D98: 4.611 | E98: 4.817 | F98: 0.01 | G98: 6.698 | H98: 0 | I98: -4.889 | J98: 80.598 | K98: 1.787 | L98: 340.818
A99: 2019/01/04 22:00:00 | B99: 0.266 | C99: 0.123 | D99: 3.997 | E99: 4.12 | F99: -0.002 | G99: 6.09 | H99: 0 | I99: -5.253 | J99: 80.573 | K99: 2.03 | L99: 336.671
A100: 2019/01/04 23:00:00 | B100: 0.446 | C100: 0.369 | D100: 4.422 | E100: 4.789 | F100: 0.019 | G100: 5.316 | H100: 0 | I100: -5.89 | J100: 80.05 | K100: 2.735 | L100: 344.212
A101: 2019/01/05 00:00:00 | B101: 0.424 | C101: 0.099 | D101: 2.847 | E101: 2.947 | F101: 0.114 | G101: 4.145 | H101: 0 | I101: -6.872 | J101: 79.258 | K101: 2.17 | L101: 355.423
A102: 2019/01/05 01:00:00 | B102: 0.408 | C102: 0.024 | D102: 3.011 | E102: 3.035 | F102: 0.148 | G102: 4.374 | H102: 0 | I102: -7.3 | J102: 79.16 | K102: 1.606 | L102: 353.339
A103: 2019/01/05 02:00:00 | B103: 0.466 | C103: 0.055 | D103: 2.718 | E103: 2.773 | F103: 0.083 | G103: 4.993 | H103: 0 | I103: -7.523 | J103: 78.559 | K103: 1.145 | L103: 328.885
A104: 2019/01/05 03:00:00 | B104: 0.441 | C104: -0.009 | D104: 3.041 | E104: 3.033 | F104: 0.063 | G104: 5.313 | H104: 0 | I104: -7.301 | J104: 78.17 | K104: 1.008 | L104: 333.055
A105: 2019/01/05 04:00:00 | B105: 0.33 | C105: 0.01 | D105: 1.377 | E105: 1.387 | F105: 0.112 | G105: 2.331 | H105: 0 | I105: -7.633 | J105: 77.842 | K105: 1.921 | L105: 16.571
A106: 2019/01/05 05:00:00 | B106: 0.354 | C106: -0.029 | D106: 0.901 | E106: 0.872 | F106: 0.143 | G106: 0.918 | H106: 0 | I106: -7.961 | J106: 77.926 | K106: 1.431 | L106: 20.061
A107: 2019/01/05 06:00:00 | B107: 0.035 | C107: -0.008 | D107: 1.301 | E107: 1.292 | F107: -0.222 | G107: 1.115 | H107: 0 | I107: -8.373 | J107: 77.885 | K107: 0.054 | L107: 93.935
A108: 2019/01/05 07:00:00 | B108: 0.092 | C108: -0.01 | D108: 3.147 | E108: 3.136 | F108: -0.071 | G108: 1.951 | H108: 0 | I108: -8.68 | J108: 78.362 | K108: 0.696 | L108: 331.294
A109: 2019/01/05 08:00:00 | B109: 0.144 | C109: -0.049 | D109: 1.572 | E109: 1.521 | F109: 0.093 | G109: 2.741 | H109: 0 | I109: -8.523 | J109: 78.175 | K109: 0.696 | L109: 40.189
A110: 2019/01/05 09:00:00 | B110: Z | C110: Z | D110: Z | E110: Z | F110: Z | G110: 2.807 | H110: 0 | I110: -8.324 | J110: 78.334 | K110: 1.367 | L110: 64.326
A111: 2019/01/05 10:00:00 | B111: 0.325 | C111: 0.095 | D111: 3.966 | E111: 4.06 | F111: 0.443 | G111: 2.476 | H111: 0 | I111: -8.3 | J111: 77.319 | K111: 2.215 | L111: 101.248
A112: 2019/01/05 11:00:00 | B112: 0.19 | C112: 0.192 | D112: 2.378 | E112: 2.57 | F112: 0.005 | G112: 1.774 | H112: 0 | I112: -8.162 | J112: 75.611 | K112: 1.821 | L112: 114.189
A113: 2019/01/05 12:00:00 | B113: 0.714 | C113: 0.279 | D113: 1.482 | E113: 1.762 | F113: 0.002 | G113: 0.786 | H113: 0 | I113: -8.067 | J113: 74.707 | K113: 2.504 | L113: 105.039
A114: 2019/01/05 13:00:00 | B114: 1.655 | C114: 0.29 | D114: 1.183 | E114: 1.473 | F114: 0.078 | G114: 0.879 | H114: 0 | I114: -7.954 | J114: 75.174 | K114: 3.293 | L114: 106.484
A115: 2019/01/05 14:00:00 | B115: 0.845 | C115: 0.36 | D115: 1.301 | E115: 1.66 | F115: 0.09 | G115: 1.427 | H115: 0 | I115: -7.777 | J115: 76.212 | K115: 3.417 | L115: 108.513
A116: 2019/01/05 15:00:00 | B116: 0.842 | C116: 1.284 | D116: 1.555 | E116: 2.838 | F116: 0.135 | G116: 6.419 | H116: 0 | I116: -7.706 | J116: 80.339 | K116: 3.574 | L116: 111.696
A117: 2019/01/05 16:00:00 | B117: 0.288 | C117: 0.14 | D117: 0.996 | E117: 1.136 | F117: 0.097 | G117: 5.526 | H117: 0 | I117: -7.739 | J117: 80.616 | K117: 4.051 | L117: 114.149
A118: 2019/01/05 17:00:00 | B118: 0.567 | C118: 0.065 | D118: 1.287 | E118: 1.351 | F118: 0.189 | G118: 3.412 | H118: 0 | I118: -7.634 | J118: 78.609 | K118: 3.701 | L118: 122.97
A119: 2019/01/05 18:00:00 | B119: 0.374 | C119: 0.052 | D119: 1.313 | E119: 1.365 | F119: 0.135 | G119: 2.024 | H119: 0 | I119: -8.314 | J119: 78.627 | K119: 3.675 | L119: 117.59
A120: 2019/01/05 19:00:00 | B120: 0.409 | C120: 0.064 | D120: 1.253 | E120: 1.316 | F120: 0.113 | G120: 1.543 | H120: 0 | I120: -8.703 | J120: 79.854 | K120: 3.644 | L120: 127.454
A121: 2019/01/05 20:00:00 | B121: 1.416 | C121: -0.013 | D121: 1.689 | E121: 1.676 | F121: 0.106 | G121: 2.216 | H121: 0 | I121: -8.838 | J121: 82.52 | K121: 4.321 | L121: 118.329
A122: 2019/01/05 21:00:00 | B122: 0.284 | C122: 0.508 | D122: 1.483 | E122: 1.993 | F122: 0.012 | G122: 2.023 | H122: 0 | I122: -9.036 | J122: 81.639 | K122: 4.39 | L122: 122.291
A123: 2019/01/05 22:00:00 | B123: 0.293 | C123: -0.004 | D123: 1.07 | E123: 1.065 | F123: -0.054 | G123: 3.124 | H123: 0 | I123: -9.29 | J123: 81.576 | K123: 4.587 | L123: 123.728
A124: 2019/01/05 23:00:00 | B124: 0.241 | C124: -0.087 | D124: 1.006 | E124: 0.918 | F124: 0.101 | G124: 4.839 | H124: 0 | I124: -9.415 | J124: 82.091 | K124: 4.635 | L124: 121.143
A125: 2019/01/06 00:00:00 | B125: 0.277 | C125: 0.024 | D125: 1.248 | E125: 1.27 | F125: 0.068 | G125: 5.338 | H125: 0 | I125: -8.923 | J125: 82.898 | K125: 4.808 | L125: 126.242
A126: 2019/01/06 01:00:00 | B126: 0.269 | C126: 0.087 | D126: 1.448 | E126: 1.535 | F126: 0.025 | G126: 6.276 | H126: 0 | I126: -8.448 | J126: 82.794 | K126: 4.732 | L126: 119.96
A127: 2019/01/06 02:00:00 | B127: 0.247 | C127: 0.068 | D127: 1.825 | E127: 1.892 | F127: -0.021 | G127: 5.991 | H127: 0 | I127: -7.965 | J127: 82.621 | K127: 4.783 | L127: 120.745
A128: 2019/01/06 03:00:00 | B128: 0.279 | C128: -0.065 | D128: 1.553 | E128: 1.489 | F128: 0.038 | G128: 4.546 | H128: 0 | I128: -7.918 | J128: 82.451 | K128: 4.776 | L128: 119.544
A129: 2019/01/06 04:00:00 | B129: 0.164 | C129: 0.021 | D129: 1.384 | E129: 1.405 | F129: -0.038 | G129: 4.357 | H129: 0 | I129: -7.83 | J129: 82.776 | K129: 5.191 | L129: 120.672
A130: 2019/01/06 05:00:00 | B130: 0.115 | C130: 0.04 | D130: 1.304 | E130: 1.344 | F130: -0.003 | G130: 5.786 | H130: 0 | I130: -7.374 | J130: 83.144 | K130: 5.687 | L130: 125.069
A131: 2019/01/06 06:00:00 | B131: 0.188 | C131: -0.01 | D131: 1.508 | E131: 1.499 | F131: -0.036 | G131: 8.379 | H131: 0 | I131: -6.622 | J131: 83.08 | K131: 5.633 | L131: 125.649
A132: 2019/01/06 07:00:00 | B132: 0.536 | C132: 0.033 | D132: 2.25 | E132: 2.282 | F132: -0.037 | G132: 11.727 | H132: 0 | I132: -5.962 | J132: 82.916 | K132: 5.009 | L132: 128.968
A133: 2019/01/06 08:00:00 | B133: Z | C133: Z | D133: Z | E133: Z | F133: Z | G133: 11.792 | H133: 0 | I133: -5.588 | J133: 81.825 | K133: 5.174 | L133: 128.029
A134: 2019/01/06 09:00:00 | B134: 2.407 | C134: 0.612 | D134: 3.449 | E134: 4.061 | F134: 0.224 | G134: 10.497 | H134: 0 | I134: -5.873 | J134: 81.688 | K134: 5.949 | L134: 126.549
A135: 2019/01/06 10:00:00 | B135: 1.95 | C135: 0.024 | D135: 2.97 | E135: 2.995 | F135: 0.128 | G135: 9.166 | H135: 0 | I135: -5.845 | J135: 81.324 | K135: 5.49 | L135: 126.946
A136: 2019/01/06 11:00:00 | B136: 1.83 | C136: 0.248 | D136: 2.836 | E136: 3.084 | F136: 0.004 | G136: 9.224 | H136: 0 | I136: -5.481 | J136: 81.037 | K136: 5.379 | L136: 126.068
A137: 2019/01/06 12:00:00 | B137: 1.476 | C137: 0.461 | D137: 2.792 | E137: 3.254 | F137: -0.003 | G137: 9.968 | H137: 0 | I137: -5.078 | J137: 80.476 | K137: 5.537 | L137: 128.804
A138: 2019/01/06 13:00:00 | B138: 1.454 | C138: 0.689 | D138: 2.675 | E138: 3.364 | F138: 0.036 | G138: 8.991 | H138: 0 | I138: -4.693 | J138: 79.947 | K138: 5.191 | L138: 128.007
A139: 2019/01/06 14:00:00 | B139: 1.478 | C139: 0.773 | D139: 3.036 | E139: 3.809 | F139: 0.15 | G139: 8.383 | H139: 0 | I139: -4.185 | J139: 79.757 | K139: 4.718 | L139: 129.323
A140: 2019/01/06 15:00:00 | B140: 0.633 | C140: 0.454 | D140: 2.545 | E140: 3 | F140: 0.109 | G140: 9.113 | H140: 0 | I140: -3.849 | J140: 79.827 | K140: 4.147 | L140: 119.568
A141: 2019/01/06 16:00:00 | B141: 0.251 | C141: 0.376 | D141: 2.524 | E141: 2.901 | F141: 0.031 | G141: 9.934 | H141: 0 | I141: -3.649 | J141: 80.574 | K141: 3.923 | L141: 119.336
A142: 2019/01/06 17:00:00 | B142: 0.175 | C142: 0.184 | D142: 2.763 | E142: 2.948 | F142: 0.044 | G142: 10.885 | H142: 0 | I142: -3.6 | J142: 81.714 | K142: 3.682 | L142: 118.342
A143: 2019/01/06 18:00:00 | B143: -0.058 | C143: 0.063 | D143: 3.001 | E143: 3.065 | F143: 0.041 | G143: 11.533 | H143: 0 | I143: -3.75 | J143: 82.68 | K143: 2.904 | L143: 113.737
A144: 2019/01/06 19:00:00 | B144: 0.078 | C144: 0.579 | D144: 3.217 | E144: 3.796 | F144: 0.057 | G144: 11.114 | H144: 0 | I144: -3.87 | J144: 82.312 | K144: 2.542 | L144: 109.974
A145: 2019/01/06 20:00:00 | B145: 0.05 | C145: -0.008 | D145: 2.968 | E145: 2.961 | F145: 0.124 | G145: 11.123 | H145: 0 | I145: -3.966 | J145: 82.25 | K145: 2.33 | L145: 107.182
A146: 2019/01/06 21:00:00 | B146: 0.223 | C146: -0.02 | D146: 5.132 | E146: 5.114 | F146: 0.121 | G146: 11.38 | H146: 0 | I146: -4.014 | J146: 82.031 | K146: 1.104 | L146: 57.93
A147: 2019/01/06 22:00:00 | B147: 0.383 | C147: -0.005 | D147: 3.426 | E147: 3.423 | F147: 0.011 | G147: 11.592 | H147: 0 | I147: -4.115 | J147: 81.875 | K147: 1.097 | L147: 344.821
A148: 2019/01/06 23:00:00 | B148: 0.076 | C148: -0.01 | D148: 4.371 | E148: 4.361 | F148: -0.011 | G148: 10.676 | H148: 0 | I148: -4.095 | J148: 82.432 | K148: 2.409 | L148: 335.825
A149: 2019/01/07 00:00:00 | B149: 0.14 | C149: 0.005 | D149: 3.965 | E149: 3.97 | F149: 0.205 | G149: 10.352 | H149: 0 | I149: -3.9 | J149: 81.213 | K149: 2.726 | L149: 329.842
A150: 2019/01/07 01:00:00 | B150: 0.064 | C150: 0.036 | D150: 2.646 | E150: 2.684 | F150: 0.174 | G150: 8.021 | H150: 0 | I150: -4.085 | J150: 79.917 | K150: 3.472 | L150: 319.427
A151: 2019/01/07 02:00:00 | B151: 0.084 | C151: 0.069 | D151: 2.439 | E151: 2.51 | F151: 0.115 | G151: 6.984 | H151: 0 | I151: -4.949 | J151: 77.989 | K151: 4.342 | L151: 318.971
A152: 2019/01/07 03:00:00 | B152: 0.182 | C152: -0.055 | D152: 3.659 | E152: 3.606 | F152: 0.18 | G152: 8.993 | H152: 0 | I152: -5.645 | J152: 76.756 | K152: 4.577 | L152: 318.776
A153: 2019/01/07 04:00:00 | B153: 0.326 | C153: 0.033 | D153: 3.385 | E153: 3.421 | F153: 0.09 | G153: 6.423 | H153: 0 | I153: -6.275 | J153: 77.087 | K153: 4.923 | L153: 323.585
A154: 2019/01/07 05:00:00 | B154: 0.109 | C154: -0.005 | D154: 2.086 | E154: 2.083 | F154: 0.009 | G154: 3.57 | H154: 0 | I154: -7.025 | J154: 77.006 | K154: 4.901 | L154: 325.941
A155: 2019/01/07 06:00:00 | B155: 0.202 | C155: 0.065 | D155: 2.67 | E155: 2.737 | F155: 0.116 | G155: 2.108 | H155: 0 | I155: -7.653 | J155: 76.682 | K155: 4.515 | L155: 327.429
A156: 2019/01/07 07:00:00 | B156: Z | C156: Z | D156: Z | E156: Z | F156: Z | G156: 2.44 | H156: 0 | I156: -8.547 | J156: 75.324 | K156: 4.821 | L156: 332.434
A157: 2019/01/07 08:00:00 | B157: 1.513 | C157: 0.39 | D157: 4.014 | E157: 4.407 | F157: 0.192 | G157: 3.796 | H157: 0 | I157: -9.653 | J157: 76.813 | K157: 3.99 | L157: 341.375
A158: 2019/01/07 09:00:00 | B158: 1.64 | C158: 0.09 | D158: 4.683 | E158: 4.775 | F158: 0.084 | G158: 4.239 | H158: 0 | I158: -9.713 | J158: 76.407 | K158: 3.877 | L158: 326.418
A159: 2019/01/07 10:00:00 | B159: 2.487 | C159: 0.247 | D159: 5.242 | E159: 5.49 | F159: 0.107 | G159: 4.574 | H159: 0 | I159: -9.955 | J159: 72.962 | K159: 4.025 | L159: 319.762
A160: 2019/01/07 11:00:00 | B160: 1.336 | C160: 0.341 | D160: 2.743 | E160: 3.086 | F160: 0.156 | G160: 3.402 | H160: 0 | I160: -10.771 | J160: 71.048 | K160: 5.825 | L160: 307.674
A161: 2019/01/07 12:00:00 | B161: 0.068 | C161: 0.311 | D161: 1.229 | E161: 1.541 | F161: 0.153 | G161: 1.268 | H161: 0 | I161: -12.561 | J161: 70.06 | K161: 6.392 | L161: 306.917
A162: 2019/01/07 13:00:00 | B162: 0.024 | C162: 0.29 | D162: 1.125 | E162: 1.417 | F162: 0.155 | G162: 0.98 | H162: 0 | I162: -13.438 | J162: 67.721 | K162: 6.49 | L162: 304.444
A163: 2019/01/07 14:00:00 | B163: 0.067 | C163: 0.372 | D163: 0.91 | E163: 1.284 | F163: 0.132 | G163: 0.981 | H163: 0 | I163: -13.948 | J163: 65.01 | K163: 6.274 | L163: 310.818
A164: 2019/01/07 15:00:00 | B164: 0.14 | C164: 0.383 | D164: 0.878 | E164: 1.263 | F164: 0.042 | G164: 1.256 | H164: 0 | I164: -13.953 | J164: 64.077 | K164: 6.454 | L164: 310.823
A165: 2019/01/07 16:00:00 | B165: -0.018 | C165: 0.317 | D165: 1.042 | E165: 1.36 | F165: 0.065 | G165: 1.426 | H165: 0 | I165: -14.508 | J165: 63.347 | K165: 5.305 | L165: 310.435
A166: 2019/01/07 17:00:00 | B166: -0.081 | C166: 0.228 | D166: 1.236 | E166: 1.465 | F166: -0.004 | G166: 1.213 | H166: 0 | I166: -15.201 | J166: 62.748 | K166: 5.041 | L166: 308.639
A167: 2019/01/07 18:00:00 | B167: -0.062 | C167: 0.007 | D167: 1.632 | E167: 1.64 | F167: 0.106 | G167: 1.253 | H167: 0 | I167: -15.279 | J167: 63.981 | K167: 4.529 | L167: 310.99
A168: 2019/01/07 19:00:00 | B168: -0.079 | C168: -0.065 | D168: 1.237 | E168: 1.173 | F168: 0.134 | G168: 1.149 | H168: 0 | I168: -15.565 | J168: 62.193 | K168: 5.552 | L168: 309.708
A169: 2019/01/07 20:00:00 | B169: -0.023 | C169: 0.024 | D169: 1.53 | E169: 1.555 | F169: 0.058 | G169: 1.04 | H169: 0 | I169: -15.654 | J169: 62.822 | K169: 5.765 | L169: 304.391
A170: 2019/01/07 21:00:00 | B170: -0.071 | C170: 0.041 | D170: 1.452 | E170: 1.494 | F170: 0.151 | G170: 1.106 | H170: 0 | I170: -15.741 | J170: 64.093 | K170: 5.356 | L170: 306.503
A171: 2019/01/07 22:00:00 | B171: 0.052 | C171: 0.033 | D171: 1.195 | E171: 1.229 | F171: 0.09 | G171: 1.163 | H171: 0 | I171: -15.676 | J171: 63.697 | K171: 5.325 | L171: 309.901
A172: 2019/01/07 23:00:00 | B172: -0.027 | C172: 0.029 | D172: 0.927 | E172: 0.957 | F172: 0.161 | G172: 0.975 | H172: 0 | I172: -15.78 | J172: 63.067 | K172: 5.138 | L172: 316.697
A173: 2019/01/08 00:00:00 | B173: 0.004 | C173: 0.032 | D173: 0.904 | E173: 0.937 | F173: 0.128 | G173: 0.805 | H173: 0 | I173: -16.013 | J173: 63.791 | K173: 5.086 | L173: 311.952
A174: 2019/01/08 01:00:00 | B174: -0.044 | C174: -0.018 | D174: 1.352 | E174: 1.334 | F174: 0.103 | G174: 0.789 | H174: 0 | I174: -16.567 | J174: 64.798 | K174: 5.072 | L174: 303.261
A175: 2019/01/08 02:00:00 | B175: -0.016 | C175: -0.022 | D175: 1.466 | E175: 1.445 | F175: 0.102 | G175: 0.798 | H175: 0 | I175: -16.628 | J175: 64.989 | K175: 5.278 | L175: 301.146
A176: 2019/01/08 03:00:00 | B176: 0.059 | C176: -0.075 | D176: 1.848 | E176: 1.774 | F176: 0.222 | G176: 0.801 | H176: 0 | I176: -16.526 | J176: 66.316 | K176: 5.003 | L176: 305.894
A177: 2019/01/08 04:00:00 | B177: 0.138 | C177: -0.025 | D177: 1.835 | E177: 1.811 | F177: 0.184 | G177: 0.802 | H177: 0 | I177: -15.902 | J177: 66.679 | K177: 4.43 | L177: 300.596
A178: 2019/01/08 05:00:00 | B178: -0.106 | C178: -0.006 | D178: 1.363 | E178: 1.357 | F178: 0.22 | G178: 0.802 | H178: 0 | I178: -16.113 | J178: 67.375 | K178: 5.215 | L178: 295.64
A179: 2019/01/08 06:00:00 | B179: Z | C179: Z | D179: Z | E179: Z | F179: Z | G179: 0.785 | H179: 0 | I179: -16.48 | J179: 67.254 | K179: 5.405 | L179: 294.538
A180: 2019/01/08 07:00:00 | B180: 0.027 | C180: -0.082 | D180: 1.103 | E180: 1.02 | F180: 0.528 | G180: 0.799 | H180: 0 | I180: -17.115 | J180: 67.251 | K180: 5.447 | L180: 292.568
A181: 2019/01/08 08:00:00 | B181: -0.075 | C181: -0.015 | D181: 1.432 | E181: 1.417 | F181: 0.272 | G181: 0.648 | H181: 0 | I181: -18.116 | J181: 67.385 | K181: 4.54 | L181: 295.402
A182: 2019/01/08 09:00:00 | B182: -0.026 | C182: 0.422 | D182: 1.9 | E182: 2.322 | F182: 0.237 | G182: 0.378 | H182: 0 | I182: -20.09 | J182: 66.95 | K182: 4.092 | L182: 291.051
A183: 2019/01/08 10:00:00 | B183: -0.048 | C183: 0.09 | D183: 2.227 | E183: 2.316 | F183: 0.255 | G183: 0.387 | H183: 0 | I183: -20.832 | J183: 66.906 | K183: 4.406 | L183: 287.287
A184: 2019/01/08 11:00:00 | B184: -0.069 | C184: 0.392 | D184: 1.943 | E184: 2.335 | F184: 0.084 | G184: 0.354 | H184: 0 | I184: -21.103 | J184: 65.797 | K184: 4.883 | L184: 296.67
A185: 2019/01/08 12:00:00 | B185: -0.092 | C185: 0.57 | D185: 1.39 | E185: 1.959 | F185: 0.163 | G185: 0.357 | H185: 0 | I185: -20.781 | J185: 64.419 | K185: 5.456 | L185: 299.96
A186: 2019/01/08 13:00:00 | B186: -0.035 | C186: 1.353 | D186: 1.776 | E186: 3.13 | F186: 0.155 | G186: 0.427 | H186: 0 | I186: -20.312 | J186: 62.927 | K186: 4.919 | L186: 301.576
A187: 2019/01/08 14:00:00 | B187: -0.065 | C187: 1.03 | D187: 1.313 | E187: 2.34 | F187: 0.112 | G187: 0.312 | H187: 0 | I187: -19.946 | J187: 61.707 | K187: 3.61 | L187: 305.095
A188: 2019/01/08 15:00:00 | B188: -0.046 | C188: 0.856 | D188: 1.415 | E188: 2.271 | F188: 0.157 | G188: 0.323 | H188: 0 | I188: -19.791 | J188: 60.565 | K188: 3.317 | L188: 297.056
A189: 2019/01/08 16:00:00 | B189: 0.203 | C189: 0.394 | D189: 2.051 | E189: 2.445 | F189: 0.211 | G189: 0.475 | H189: 0 | I189: -11.272 | J189: 34.385 | K189: 1.709 | L189: 297.545
A190: 2019/01/08 17:00:00 | B190: 0.039 | C190: 0.445 | D190: 2.438 | E190: 2.882 | F190: 0.097 | G190: 0.746 | H190: 0 | I190: -20.374 | J190: 61.014 | K190: 2.255 | L190: 279.633
A191: 2019/01/08 18:00:00 | B191: -0.125 | C191: 0.492 | D191: 5.128 | E191: 5.619 | F191: 0.153 | G191: 0.712 | H191: 0 | I191: -21.945 | J191: 63.041 | K191: 1.952 | L191: 263.075
A192: 2019/01/08 19:00:00 | B192: -0.217 | C192: 0.151 | D192: 5.855 | E192: 6.005 | F192: 0.088 | G192: 0.883 | H192: 0 | I192: -23.742 | J192: 65.735 | K192: 0.833 | L192: 221.545
A193: 2019/01/08 20:00:00 | B193: -0.174 | C193: 0.558 | D193: 12.584 | E193: 13.141 | F193: 0.004 | G193: 1.689 | H193: 0 | I193: -25.101 | J193: 66.563 | K193: 0.488 | L193: 189.835
A194: 2019/01/08 21:00:00 | B194: -0.288 | C194: 0.125 | D194: 15.031 | E194: 15.155 | F194: 0.069 | G194: 2.053 | H194: 0 | I194: -26.907 | J194: 69.034 | K194: 0.845 | L194: 158.472
A195: 2019/01/08 22:00:00 | B195: -0.445 | C195: 0.145 | D195: 15.799 | E195: 15.943 | F195: 0.017 | G195: 3.26 | H195: 0 | I195: -28.022 | J195: 67.325 | K195: 0.759 | L195: 159.17
A196: 2019/01/08 23:00:00 | B196: -0.257 | C196: 0.152 | D196: 20.65 | E196: 20.801 | F196: 0.191 | G196: 4.372 | H196: 0 | I196: -27.6 | J196: 70.548 | K196: 0.892 | L196: 163.842
A197: 2019/01/09 00:00:00 | B197: -0.296 | C197: 0.052 | D197: 19.889 | E197: 19.94 | F197: 0.257 | G197: 4.086 | H197: 0 | I197: -27.698 | J197: 68.262 | K197: 0.289 | L197: 209.021
A198: 2019/01/09 01:00:00 | B198: -0.36 | C198: 0.222 | D198: 16.593 | E198: 16.813 | F198: 0.229 | G198: 2.352 | H198: 0 | I198: -25.307 | J198: 69.811 | K198: 1.288 | L198: 137.476
A199: 2019/01/09 02:00:00 | B199: -0.126 | C199: 0.181 | D199: 7.407 | E199: 7.586 | F199: 0.151 | G199: 1.047 | H199: 0 | I199: -24.473 | J199: 71.143 | K199: 2.357 | L199: 125.616
A200: 2019/01/09 03:00:00 | B200: 2.358 | C200: 0.059 | D200: 6.106 | E200: 6.163 | F200: 0.071 | G200: 1.102 | H200: 0 | I200: -23.331 | J200: 70.99 | K200: 3.201 | L200: 121.956
A201: 2019/01/09 04:00:00 | B201: 3.142 | C201: 0.094 | D201: 5.127 | E201: 5.22 | F201: 0.045 | G201: 0.976 | H201: 0 | I201: -22.309 | J201: 70.235 | K201: 3.027 | L201: 133.912
... 557 more rows

Sheet Meadow Lake
A1: =Kerrobert!A1 -> Group: Global WYAMZ - Monthly Monthly: 01/2019 Type: AVG 1 Hr.
A3: Date & Time | B3: Meadow Lake | C3: Meadow Lake | D3: Meadow Lake | E3: Meadow Lake | F3: Meadow Lake | G3: Meadow Lake | H3: Meadow Lake | I3: Meadow Lake | J3: Meadow Lake | K3: Meadow Lake
B4: NO | C4: NO2 | D4: NOX | E4: O3 | F4: PM25 | G4: PRECIP | H4: TEMPERAT | I4: WS | J4: WD | K4: RH
B5: ppb | C5: ppb | D5: ppb | E5: ppb | F5: ug/m3(L) | G5: mm | H5: C° | I5: m/s | J5: Deg | K5: %RH
A6: 2019/01/01 01:00:00 | B6: 0.116 | C6: 2.406 | D6: 2.521 | E6: 24.065 | F6: 4.402 | G6: 0 | H6: -19.8 | I6: 1 | J6: 143.711 | K6: 71.049
A7: 2019/01/01 02:00:00 | B7: 0.055 | C7: 2.355 | D7: 2.411 | E7: 22.89 | F7: 4.88 | G7: 0 | H7: -18.785 | I7: 1.651 | J7: 184.257 | K7: 69.847
A8: 2019/01/01 03:00:00 | B8: 0.085 | C8: 2.337 | D8: 2.422 | E8: 21.863 | F8: 4.466 | G8: 0 | H8: -18.132 | I8: 2.04 | J8: 172.552 | K8: 69.253
A9: 2019/01/01 04:00:00 | B9: -0.076 | C9: 2.426 | D9: 2.351 | E9: 21.601 | F9: 4.493 | G9: 0 | H9: -18.361 | I9: 1.707 | J9: 166.36 | K9: 69.491
A10: 2019/01/01 05:00:00 | B10: 0.095 | C10: 2.31 | D10: 2.406 | E10: 21.449 | F10: 4.576 | G10: 0 | H10: -17.312 | I10: 1.749 | J10: 149.422 | K10: 68.846
A11: 2019/01/01 06:00:00 | B11: 0.077 | C11: 2.096 | D11: 2.173 | E11: 22.411 | F11: 3.829 | G11: 0 | H11: -16.246 | I11: 1.98 | J11: 132.738 | K11: 69.744
A12: 2019/01/01 07:00:00 | B12: 0.13 | C12: 1.738 | D12: 1.869 | E12: 25.704 | F12: 2.441 | G12: 0 | H12: -13.88 | I12: 1.269 | J12: 160.804 | K12: 67.17
A13: 2019/01/01 08:00:00 | B13: 0.034 | C13: 1.961 | D13: 1.996 | E13: 26.618 | F13: 2.822 | G13: 0 | H13: -12.527 | I13: 2.333 | J13: 193.146 | K13: 69.997
A14: 2019/01/01 09:00:00 | B14: -0.016 | C14: 1.768 | D14: 1.752 | E14: 26.608 | F14: 2.576 | G14: 0.04 | H14: -12.46 | I14: 2.687 | J14: 187.919 | K14: 73.847
A15: 2019/01/01 10:00:00 | B15: 0.056 | C15: 1.585 | D15: 1.644 | E15: 27.034 | F15: 2.293 | G15: 0.05 | H15: -11.901 | I15: 2.361 | J15: 204.282 | K15: 74.018
A16: 2019/01/01 11:00:00 | B16: 0.134 | C16: 1.558 | D16: 1.693 | E16: 26.718 | F16: 2.257 | G16: 0 | H16: -11.212 | I16: 1.47 | J16: 200.756 | K16: 73.997
A17: 2019/01/01 12:00:00 | B17: 0.295 | C17: 1.715 | D17: 2.01 | E17: 27.616 | F17: 2.223 | G17: 0 | H17: -8.542 | I17: 2.321 | J17: 227.273 | K17: 73.366
A18: 2019/01/01 13:00:00 | B18: Z | C18: Z | D18: Z | E18: Z | F18: 2.574 | G18: 0 | H18: -5.827 | I18: 2.848 | J18: 248.873 | K18: 74.427
A19: 2019/01/01 14:00:00 | B19: 0.436 | C19: 2.098 | D19: 2.535 | E19: 30.995 | F19: 2.226 | G19: 0 | H19: -4.36 | I19: 3.302 | J19: 257.661 | K19: 71.002
A20: 2019/01/01 15:00:00 | B20: 0.349 | C20: 2.131 | D20: 2.481 | E20: 32.553 | F20: 1.768 | G20: 0 | H20: -3.033 | I20: 3.606 | J20: 259.898 | K20: 69.894
A21: 2019/01/01 16:00:00 | B21: 0.32 | C21: 1.885 | D21: 2.204 | E21: 34.076 | F21: 0.786 | G21: 0 | H21: -2.015 | I21: 3.74 | J21: 258.671 | K21: 69.117
A22: 2019/01/01 17:00:00 | B22: 0.154 | C22: 1.769 | D22: 1.924 | E22: 35.383 | F22: 0.562 | G22: 0 | H22: -1.533 | I22: 3.712 | J22: 257.414 | K22: 69.326
A23: 2019/01/01 18:00:00 | B23: 0.049 | C23: 1.319 | D23: 1.37 | E23: 36.854 | F23: 0.41 | G23: 0 | H23: -0.815 | I23: 3.813 | J23: 259.005 | K23: 67.53
A24: 2019/01/01 19:00:00 | B24: 0.004 | C24: 0.855 | D24: 0.861 | E24: 37.479 | F24: 0.344 | G24: 0 | H24: -0.949 | I24: 3.969 | J24: 255.11 | K24: 67.593
A25: 2019/01/01 20:00:00 | B25: -0.047 | C25: 0.856 | D25: 0.811 | E25: 37.389 | F25: 0.294 | G25: 0 | H25: -0.883 | I25: 4.126 | J25: 257.769 | K25: 67.623
A26: 2019/01/01 21:00:00 | B26: -0.068 | C26: 0.823 | D26: 0.757 | E26: 37.021 | F26: 0.216 | G26: 0 | H26: -1.224 | I26: 3.939 | J26: 267.468 | K26: 69.231
A27: 2019/01/01 22:00:00 | B27: -0.046 | C27: 0.77 | D27: 0.724 | E27: 36.865 | F27: 0.209 | G27: 0 | H27: -1.212 | I27: 4.375 | J27: 267.551 | K27: 68.635
A28: 2019/01/01 23:00:00 | B28: -0.029 | C28: 0.879 | D28: 0.851 | E28: 36.619 | F28: 0.227 | G28: 0 | H28: -1.317 | I28: 4.498 | J28: 264.502 | K28: 68.282
A29: 2019/01/02 00:00:00 | B29: -0.134 | C29: 0.89 | D29: 0.757 | E29: 35.993 | F29: 0.183 | G29: 0 | H29: -1.719 | I29: 4.127 | J29: 269.974 | K29: 70.245
A30: 2019/01/02 01:00:00 | B30: -0.104 | C30: 0.979 | D30: 0.874 | E30: 35.236 | F30: 0.463 | G30: 0 | H30: -2.248 | I30: 3.477 | J30: 266.244 | K30: 71.331
A31: 2019/01/02 02:00:00 | B31: -0.156 | C31: 1 | D31: 0.845 | E31: 35.18 | F31: 0.518 | G31: 0 | H31: -2.768 | I31: 3.136 | J31: 262.703 | K31: 72.547
A32: 2019/01/02 03:00:00 | B32: -0.1 | C32: 0.909 | D32: 0.81 | E32: 35.433 | F32: 0.535 | G32: 0 | H32: -3.115 | I32: 2.698 | J32: 262.607 | K32: 73.531
A33: 2019/01/02 04:00:00 | B33: -0.097 | C33: 0.853 | D33: 0.756 | E33: 35.025 | F33: 0.59 | G33: 0 | H33: -4.559 | I33: 0.985 | J33: 237.002 | K33: 75.736
A34: 2019/01/02 05:00:00 | B34: -0.058 | C34: 0.803 | D34: 0.746 | E34: 34.055 | F34: 0.567 | G34: 0 | H34: -5.931 | I34: 0.843 | J34: 176.825 | K34: 79.692
A35: 2019/01/02 06:00:00 | B35: -0.059 | C35: 0.575 | D35: 0.518 | E35: 32.189 | F35: 0.477 | G35: 0 | H35: -5.655 | I35: 1.235 | J35: 181.13 | K35: 79.244
A36: 2019/01/02 07:00:00 | B36: -0.101 | C36: 0.631 | D36: 0.532 | E36: 30.736 | F36: 0.428 | G36: 0 | H36: -5.89 | I36: 1.366 | J36: 177.619 | K36: 78.605
A37: 2019/01/02 08:00:00 | B37: -0.291 | C37: 0.514 | D37: 0.225 | E37: 28.906 | F37: 0.408 | G37: 0 | H37: -5.15 | I37: 1.463 | J37: 174.558 | K37: 74.923
A38: 2019/01/02 09:00:00 | B38: -0.179 | C38: 0.765 | D38: 0.587 | E38: 29.835 | F38: 0.565 | G38: 0 | H38: -3.588 | I38: 1.227 | J38: 168.162 | K38: 75.872
A39: 2019/01/02 10:00:00 | B39: -0.284 | C39: 1.149 | D39: 0.865 | E39: 29.108 | F39: 0.934 | G39: 0 | H39: -2.489 | I39: 0.889 | J39: 166.581 | K39: 77.111
A40: 2019/01/02 11:00:00 | B40: -0.287 | C40: 1.446 | D40: 1.16 | E40: 29.303 | F40: 0.561 | G40: 0 | H40: -0.602 | I40: 1.557 | J40: 194.635 | K40: 75.082
A41: 2019/01/02 12:00:00 | B41: Z | C41: Z | D41: Z | E41: Z | F41: 0.525 | G41: 0 | H41: 2.678 | I41: 2.373 | J41: 207.373 | K41: 67.673
A42: 2019/01/02 13:00:00 | B42: 0.184 | C42: 2.062 | D42: 2.246 | E42: 34.22 | F42: 0.489 | G42: 0 | H42: 4.773 | I42: 2.943 | J42: 223.502 | K42: 61.159
A43: 2019/01/02 14:00:00 | B43: 0.051 | C43: 2.031 | D43: 2.082 | E43: 35.774 | F43: 0.462 | G43: 0 | H43: 6.294 | I43: 2.855 | J43: 234.266 | K43: 56.97
A44: 2019/01/02 15:00:00 | B44: 0.184 | C44: 1.939 | D44: 2.125 | E44: 37.631 | F44: 0.481 | G44: 0 | H44: 7.746 | I44: 3.871 | J44: 236.777 | K44: 51.388
A45: 2019/01/02 16:00:00 | B45: -0.004 | C45: 1.829 | D45: 1.827 | E45: 37.961 | F45: 0.43 | G45: 0 | H45: 7.871 | I45: 2.957 | J45: 234.502 | K45: 51.346
A46: 2019/01/02 17:00:00 | B46: -0.104 | C46: 2.183 | D46: 2.079 | E46: 37.148 | F46: 0.462 | G46: 0 | H46: 7.416 | I46: 2.893 | J46: 231.026 | K46: 53.602
A47: 2019/01/02 18:00:00 | B47: -0.167 | C47: 2.45 | D47: 2.284 | E47: 36.593 | F47: 0.486 | G47: 0 | H47: 6.566 | I47: 3.511 | J47: 260.147 | K47: 56.291
A48: 2019/01/02 19:00:00 | B48: -0.29 | C48: 1.764 | D48: 1.475 | E48: 37.215 | F48: 0.447 | G48: 0 | H48: 5.753 | I48: 2.734 | J48: 253.854 | K48: 59.802
A49: 2019/01/02 20:00:00 | B49: -0.132 | C49: 0.953 | D49: 0.822 | E49: 37.898 | F49: 0.404 | G49: 0 | H49: 5.562 | I49: 2.972 | J49: 263.328 | K49: 60.954
A50: 2019/01/02 21:00:00 | B50: -0.242 | C50: 0.948 | D50: 0.706 | E50: 37.48 | F50: 0.425 | G50: 0 | H50: 5.245 | I50: 2.886 | J50: 252.654 | K50: 62.104
A51: 2019/01/02 22:00:00 | B51: -0.159 | C51: 0.749 | D51: 0.591 | E51: 37.697 | F51: 0.457 | G51: 0 | H51: 5.19 | I51: 2.314 | J51: 242.712 | K51: 62.541
A52: 2019/01/02 23:00:00 | B52: -0.193 | C52: 0.831 | D52: 0.641 | E52: 37.577 | F52: 0.542 | G52: 0 | H52: 4.84 | I52: 2.231 | J52: 241.81 | K52: 63.662
A53: 2019/01/03 00:00:00 | B53: -0.065 | C53: 0.722 | D53: 0.656 | E53: 37.082 | F53: 0.516 | G53: 0 | H53: 4.391 | I53: 2.511 | J53: 255.182 | K53: 64.785
A54: 2019/01/03 01:00:00 | B54: -0.147 | C54: 0.69 | D54: 0.543 | E54: 36.632 | F54: 0.435 | G54: 0 | H54: 3.95 | I54: 1.413 | J54: 243.549 | K54: 66.583
A55: 2019/01/03 02:00:00 | B55: -0.194 | C55: 0.856 | D55: 0.663 | E55: 36.086 | F55: 0.378 | G55: 0 | H55: 4.134 | I55: 1.943 | J55: 216.62 | K55: 65.586
A56: 2019/01/03 03:00:00 | B56: -0.152 | C56: 0.581 | D56: 0.431 | E56: 36.404 | F56: 0.357 | G56: 0 | H56: 4.835 | I56: 2.547 | J56: 218.6 | K56: 62.096
A57: 2019/01/03 04:00:00 | B57: -0.122 | C57: 0.758 | D57: 0.635 | E57: 35.865 | F57: 0.377 | G57: 0 | H57: 4.841 | I57: 2.368 | J57: 218.718 | K57: 61.301
A58: 2019/01/03 05:00:00 | B58: -0.108 | C58: 1.041 | D58: 0.933 | E58: 35.141 | F58: 0.394 | G58: 0 | H58: 4.735 | I58: 2.021 | J58: 234.059 | K58: 61.473
A59: 2019/01/03 06:00:00 | B59: -0.085 | C59: 1.1 | D59: 1.015 | E59: 35.716 | F59: 0.41 | G59: 0 | H59: 4.683 | I59: 2.528 | J59: 241.735 | K59: 62.858
A60: 2019/01/03 07:00:00 | B60: -0.166 | C60: 1.018 | D60: 0.853 | E60: 36.391 | F60: 0.391 | G60: 0 | H60: 4.346 | I60: 3.363 | J60: 248.849 | K60: 66.361
A61: 2019/01/03 08:00:00 | B61: -0.154 | C61: 0.866 | D61: 0.712 | E61: 36.621 | F61: 0.387 | G61: 0 | H61: 3.631 | I61: 3.396 | J61: 250.749 | K61: 67.569
A62: 2019/01/03 09:00:00 | B62: -0.104 | C62: 0.611 | D62: 0.508 | E62: 36.956 | F62: 0.356 | G62: 0 | H62: 3.043 | I62: 3.224 | J62: 254.351 | K62: 66.566
A63: 2019/01/03 10:00:00 | B63: -0.042 | C63: 0.517 | D63: 0.474 | E63: 37.013 | F63: 0.33 | G63: 0 | H63: 2.457 | I63: 3.023 | J63: 264.56 | K63: 65.051
A64: 2019/01/03 11:00:00 | B64: Z | C64: Z | D64: Z | E64: Z | F64: 0.317 | G64: 0 | H64: 1.718 | I64: 3.038 | J64: 267.829 | K64: 64.306
A65: 2019/01/03 12:00:00 | B65: 0.073 | C65: 0.721 | D65: 0.796 | E65: 37.005 | F65: 0.345 | G65: 0 | H65: 1.398 | I65: 2.722 | J65: 264.264 | K65: 62.336
A66: 2019/01/03 13:00:00 | B66: 0.072 | C66: 0.87 | D66: 0.942 | E66: 37.101 | F66: 0.345 | G66: 0 | H66: 1.41 | I66: 2.284 | J66: 252.17 | K66: 60.873
A67: 2019/01/03 14:00:00 | B67: 0.089 | C67: 0.711 | D67: 0.8 | E67: 37.904 | F67: 0.345 | G67: 0 | H67: 1.561 | I67: 2.573 | J67: 250.726 | K67: 58.902
A68: 2019/01/03 15:00:00 | B68: 0.092 | C68: 0.726 | D68: 0.819 | E68: 38.374 | F68: 0.37 | G68: 0 | H68: 1.749 | I68: 2.297 | J68: 252.386 | K68: 56.363
A69: 2019/01/03 16:00:00 | B69: 0.035 | C69: 0.746 | D69: 0.782 | E69: 39.248 | F69: 0.403 | G69: 0 | H69: 1.482 | I69: 2.545 | J69: 253.433 | K69: 54.83
A70: 2019/01/03 17:00:00 | B70: -0.101 | C70: 0.849 | D70: 0.749 | E70: 39.351 | F70: 0.461 | G70: 0 | H70: 0.709 | I70: 1.618 | J70: 239.018 | K70: 54.646
A71: 2019/01/03 18:00:00 | B71: -0.012 | C71: 1.527 | D71: 1.514 | E71: 37.267 | F71: 0.453 | G71: 0 | H71: -1.005 | I71: 0.656 | J71: 200.814 | K71: 59.181
A72: 2019/01/03 19:00:00 | B72: -0.065 | C72: 1.104 | D72: 1.039 | E72: 38.426 | F72: 0.426 | G72: 0 | H72: -1.465 | I72: 1.178 | J72: 226.339 | K72: 55.11
A73: 2019/01/03 20:00:00 | B73: -0.05 | C73: 0.721 | D73: 0.67 | E73: 39.506 | F73: 0.377 | G73: 0 | H73: -1.502 | I73: 1.716 | J73: 219.386 | K73: 52.592
A74: 2019/01/03 21:00:00 | B74: -0.104 | C74: 1.692 | D74: 1.588 | E74: 37.124 | F74: 0.351 | G74: 0 | H74: -1.983 | I74: 1.664 | J74: 210.404 | K74: 55.401
A75: 2019/01/03 22:00:00 | B75: -0.15 | C75: 1.607 | D75: 1.457 | E75: 36.227 | F75: 0.593 | G75: 0 | H75: -2.326 | I75: 1.848 | J75: 209.681 | K75: 57.94
A76: 2019/01/03 23:00:00 | B76: -0.063 | C76: 1.157 | D76: 1.096 | E76: 37.103 | F76: 0.613 | G76: 0 | H76: -2.406 | I76: 1.399 | J76: 212.275 | K76: 56.897
A77: 2019/01/04 00:00:00 | B77: -0.034 | C77: 0.833 | D77: 0.801 | E77: 37.775 | F77: 0.667 | G77: 0 | H77: -2.469 | I77: 1.433 | J77: 236.339 | K77: 56.166
A78: 2019/01/04 01:00:00 | B78: -0.109 | C78: 1.076 | D78: 0.966 | E78: 37.481 | F78: 0.73 | G78: 0 | H78: -2.492 | I78: 1.772 | J78: 241.391 | K78: 56.252
A79: 2019/01/04 02:00:00 | B79: 0.01 | C79: 1.129 | D79: 1.139 | E79: 36.995 | F79: 0.735 | G79: 0 | H79: -2.296 | I79: 1.683 | J79: 254.141 | K79: 56.237
A80: 2019/01/04 03:00:00 | B80: -0.108 | C80: 1.404 | D80: 1.295 | E80: 36.223 | F80: 0.863 | G80: 0 | H80: -2.618 | I80: 1.621 | J80: 255.997 | K80: 56.986
A81: 2019/01/04 04:00:00 | B81: -0.07 | C81: 1.305 | D81: 1.235 | E81: 35.732 | F81: 0.852 | G81: 0 | H81: -2.74 | I81: 1.489 | J81: 247.14 | K81: 56.98
A82: 2019/01/04 05:00:00 | B82: -0.031 | C82: 1.306 | D82: 1.274 | E82: 35.545 | F82: 0.879 | G82: 0 | H82: -3.154 | I82: 1.606 | J82: 255.63 | K82: 57.453
A83: 2019/01/04 06:00:00 | B83: -0.002 | C83: 1.352 | D83: 1.351 | E83: 33.168 | F83: 0.859 | G83: 0 | H83: -5.329 | I83: 0.684 | J83: 280.906 | K83: 63.747
A84: 2019/01/04 07:00:00 | B84: 0.045 | C84: 1.382 | D84: 1.427 | E84: 33.985 | F84: 0.811 | G84: 0 | H84: -4.621 | I84: 0.799 | J84: 244.704 | K84: 60.947
A85: 2019/01/04 08:00:00 | B85: -0.004 | C85: 1.416 | D85: 1.412 | E85: 32.084 | F85: 0.844 | G85: 0 | H85: -5.472 | I85: 0.134 | J85: 97.8 | K85: 64.98
A86: 2019/01/04 09:00:00 | B86: -0.087 | C86: 1.681 | D86: 1.593 | E86: 31.914 | F86: 0.991 | G86: 0 | H86: -4.957 | I86: 0.498 | J86: 223.425 | K86: 63.355
A87: 2019/01/04 10:00:00 | B87: Z | C87: Z | D87: Z | E87: Z | F87: 1.288 | G87: 0 | H87: -5.619 | I87: 0.445 | J87: 173.374 | K87: 65.53
A88: 2019/01/04 11:00:00 | B88: 0.266 | C88: 2.194 | D88: 2.459 | E88: 31.142 | F88: 1.76 | G88: 0 | H88: -5.916 | I88: 0.154 | J88: 111.785 | K88: 67.056
A89: 2019/01/04 12:00:00 | B89: 2.397 | C89: 8.96 | D89: 11.357 | E89: 21.773 | F89: 3.12 | G89: 0 | H89: -6.104 | I89: 0.327 | J89: 95.315 | K89: 69.552
A90: 2019/01/04 13:00:00 | B90: 1.131 | C90: 4.856 | D90: 5.987 | E90: 31.171 | F90: 6.299 | G90: 0 | H90: -4.659 | I90: 1.114 | J90: 44.795 | K90: 64.992
A91: 2019/01/04 14:00:00 | B91: 0.542 | C91: 2.669 | D91: 3.21 | E91: 30.796 | F91: 2.818 | G91: 0 | H91: -5.095 | I91: 1.322 | J91: 20.338 | K91: 68.482
A92: 2019/01/04 15:00:00 | B92: 0.034 | C92: 1.211 | D92: 1.245 | E92: 33.801 | F92: 1.86 | G92: 0 | H92: -5.109 | I92: 2.777 | J92: 28.272 | K92: 67.589
A93: 2019/01/04 16:00:00 | B93: 0.182 | C93: 1.408 | D93: 1.589 | E93: 33.378 | F93: 1.27 | G93: 0 | H93: -5.785 | I93: 3.009 | J93: 27.361 | K93: 68.911
A94: 2019/01/04 17:00:00 | B94: 0.097 | C94: 1.398 | D94: 1.495 | E94: 32.356 | F94: 1.353 | G94: 0 | H94: -6.34 | I94: 2.19 | J94: 13.612 | K94: 70.697
A95: 2019/01/04 18:00:00 | B95: 0.012 | C95: 1.425 | D95: 1.438 | E95: 32.609 | F95: 1.27 | G95: 0 | H95: -6.82 | I95: 2.071 | J95: 13.953 | K95: 72.406
A96: 2019/01/04 19:00:00 | B96: 0.023 | C96: 0.917 | D96: 0.939 | E96: 34.929 | F96: 1.042 | G96: 0 | H96: -7.548 | I96: 2.835 | J96: 17.786 | K96: 73.523
A97: 2019/01/04 20:00:00 | B97: 0.043 | C97: 0.754 | D97: 0.798 | E97: 34.606 | F97: 1.025 | G97: 0 | H97: -8.192 | I97: 1.8 | J97: 13.643 | K97: 74.863
A98: 2019/01/04 21:00:00 | B98: 0.02 | C98: 0.555 | D98: 0.575 | E98: 36.036 | F98: 0.817 | G98: 0 | H98: -8.301 | I98: 2.11 | J98: 346.155 | K98: 75.868
A99: 2019/01/04 22:00:00 | B99: -0.006 | C99: 0.464 | D99: 0.459 | E99: 37.036 | F99: 0.881 | G99: 0 | H99: -8.526 | I99: 1.841 | J99: 8.917 | K99: 77.406
A100: 2019/01/04 23:00:00 | B100: -0.002 | C100: 0.505 | D100: 0.503 | E100: 36.526 | F100: 0.86 | G100: 0 | H100: -8.445 | I100: 1.552 | J100: 353.362 | K100: 76.677
A101: 2019/01/05 00:00:00 | B101: 0.052 | C101: 0.5 | D101: 0.553 | E101: 36.206 | F101: 0.835 | G101: 0 | H101: -8.821 | I101: 2.797 | J101: 6.001 | K101: 77.493
A102: 2019/01/05 01:00:00 | B102: 0.046 | C102: 0.354 | D102: 0.4 | E102: 36.995 | F102: 0.597 | G102: 0 | H102: -9.186 | I102: 2.384 | J102: 17.213 | K102: 77.057
A103: 2019/01/05 02:00:00 | B103: 0.001 | C103: 0.325 | D103: 0.326 | E103: 37.651 | F103: 0.361 | G103: 0 | H103: -9.92 | I103: 3.372 | J103: 22.957 | K103: 77.556
A104: 2019/01/05 03:00:00 | B104: -0.008 | C104: 0.252 | D104: 0.246 | E104: 38.057 | F104: 0.01 | G104: 0 | H104: -10.649 | I104: 2.944 | J104: 22.541 | K104: 76.434
A105: 2019/01/05 04:00:00 | B105: 0.033 | C105: 0.282 | D105: 0.316 | E105: 38.177 | F105: -0.125 | G105: 0 | H105: -11.001 | I105: 2.574 | J105: 20.846 | K105: 76.903
A106: 2019/01/05 05:00:00 | B106: -0.013 | C106: 0.314 | D106: 0.302 | E106: 37.949 | F106: -0.162 | G106: 0 | H106: -11.455 | I106: 2.898 | J106: 27.178 | K106: 76.867
A107: 2019/01/05 06:00:00 | B107: 0.052 | C107: 0.286 | D107: 0.338 | E107: 37.36 | F107: -0.072 | G107: 0 | H107: -12.201 | I107: 2.954 | J107: 23.054 | K107: 77.303
A108: 2019/01/05 07:00:00 | B108: 0.069 | C108: 0.321 | D108: 0.391 | E108: 37.023 | F108: -0.184 | G108: 0 | H108: -12.818 | I108: 2.213 | J108: 39.168 | K108: 75.997
A109: 2019/01/05 08:00:00 | B109: 0.126 | C109: 0.34 | D109: 0.467 | E109: 36.505 | F109: -0.147 | G109: 0 | H109: -13.041 | I109: 1.928 | J109: 44.155 | K109: 75.827
A110: 2019/01/05 09:00:00 | B110: Z | C110: Z | D110: Z | E110: Z | F110: -0.138 | G110: 0 | H110: -13.424 | I110: 1.854 | J110: 43.953 | K110: 76.073
A111: 2019/01/05 10:00:00 | B111: 0.104 | C111: 0.398 | D111: 0.505 | E111: 36.341 | F111: 5.635 | G111: 0 | H111: -13.441 | I111: 1.334 | J111: 87.995 | K111: 75.498
A112: 2019/01/05 11:00:00 | B112: 0.083 | C112: 0.465 | D112: 0.55 | E112: 36.124 | F112: 3.596 | G112: 0 | H112: -13.736 | I112: 1.577 | J112: 68.453 | K112: 76.071
A113: 2019/01/05 12:00:00 | B113: 0.048 | C113: 0.325 | D113: 0.373 | E113: 36.023 | F113: 1.581 | G113: 0 | H113: -13.8 | I113: 1.835 | J113: 109.899 | K113: 75.311
A114: 2019/01/05 13:00:00 | B114: 0.052 | C114: 0.374 | D114: 0.427 | E114: 35.925 | F114: -0.066 | G114: 0 | H114: -13.318 | I114: 2.503 | J114: 129.138 | K114: 72.81
A115: 2019/01/05 14:00:00 | B115: 0.197 | C115: 0.297 | D115: 0.494 | E115: 35.676 | F115: 2.468 | G115: 0 | H115: -13.323 | I115: 2.44 | J115: 101.107 | K115: 73.066
A116: 2019/01/05 15:00:00 | B116: 0.101 | C116: 0.454 | D116: 0.554 | E116: 35.592 | F116: 9.626 | G116: 0 | H116: -12.561 | I116: 2.786 | J116: 85.881 | K116: 70.444
A117: 2019/01/05 16:00:00 | B117: 0.105 | C117: 0.371 | D117: 0.475 | E117: 35.426 | F117: 1.393 | G117: 0 | H117: -10.732 | I117: 2.746 | J117: 98.114 | K117: 65.701
A118: 2019/01/05 17:00:00 | B118: 0.096 | C118: 0.459 | D118: 0.553 | E118: 35.522 | F118: 0.063 | G118: 0 | H118: -10.952 | I118: 2.444 | J118: 115.047 | K118: 66.174
A119: 2019/01/05 18:00:00 | B119: 0.046 | C119: 0.618 | D119: 0.664 | E119: 34.555 | F119: 0.276 | G119: 0 | H119: -11.272 | I119: 2.314 | J119: 120.395 | K119: 71.944
A120: 2019/01/05 19:00:00 | B120: 0.084 | C120: 0.386 | D120: 0.47 | E120: 34.648 | F120: 0.642 | G120: 0 | H120: -11.244 | I120: 2.494 | J120: 123.341 | K120: 78.633
A121: 2019/01/05 20:00:00 | B121: -0.008 | C121: 0.505 | D121: 0.492 | E121: 34.173 | F121: 0.527 | G121: 0 | H121: -11.029 | I121: 2.693 | J121: 127.092 | K121: 76.788
A122: 2019/01/05 21:00:00 | B122: 0.085 | C122: 0.357 | D122: 0.44 | E122: 34.195 | F122: 0.463 | G122: 0 | H122: -11.667 | I122: 3.643 | J122: 122.715 | K122: 80.882
A123: 2019/01/05 22:00:00 | B123: 0.066 | C123: 0.347 | D123: 0.41 | E123: 34.381 | F123: 0.42 | G123: 0 | H123: -11.693 | I123: 3.505 | J123: 115.936 | K123: 82.038
A124: 2019/01/05 23:00:00 | B124: -0.058 | C124: 0.471 | D124: 0.41 | E124: 34.903 | F124: 0.469 | G124: 0 | H124: -11.358 | I124: 3.285 | J124: 118.825 | K124: 81.393
A125: 2019/01/06 00:00:00 | B125: 0.039 | C125: 0.376 | D125: 0.412 | E125: 35.625 | F125: 0.45 | G125: 0 | H125: -10.924 | I125: 3.306 | J125: 122.916 | K125: 80.565
A126: 2019/01/06 01:00:00 | B126: 0.008 | C126: 0.389 | D126: 0.393 | E126: 35.888 | F126: 0.576 | G126: 0 | H126: -11.436 | I126: 3.871 | J126: 120.122 | K126: 79.941
A127: 2019/01/06 02:00:00 | B127: 0.055 | C127: 0.427 | D127: 0.481 | E127: 36.157 | F127: 0.82 | G127: 0 | H127: -11.5 | I127: 3.407 | J127: 121.048 | K127: 80.104
A128: 2019/01/06 03:00:00 | B128: 0.056 | C128: 0.44 | D128: 0.492 | E128: 36.007 | F128: 1.189 | G128: 0 | H128: -10.77 | I128: 4.435 | J128: 129.355 | K128: 81.074
A129: 2019/01/06 04:00:00 | B129: -0.024 | C129: 0.497 | D129: 0.468 | E129: 35.949 | F129: 1.525 | G129: 0 | H129: -10.002 | I129: 4.272 | J129: 131.371 | K129: 81.089
A130: 2019/01/06 05:00:00 | B130: 0.043 | C130: 0.49 | D130: 0.528 | E130: 35.829 | F130: 1.768 | G130: 0 | H130: -9.542 | I130: 4.503 | J130: 127.342 | K130: 81.43
A131: 2019/01/06 06:00:00 | B131: 0.096 | C131: 0.499 | D131: 0.593 | E131: 35.149 | F131: 1.646 | G131: 0 | H131: -9.271 | I131: 4.938 | J131: 124.008 | K131: 81.479
A132: 2019/01/06 07:00:00 | B132: -0.006 | C132: 0.591 | D132: 0.581 | E132: 34.48 | F132: 2.254 | G132: 0 | H132: -8.832 | I132: 4.976 | J132: 127.748 | K132: 81.364
A133: 2019/01/06 08:00:00 | B133: Z | C133: Z | D133: Z | E133: Z | F133: 2.737 | G133: 0 | H133: -8.556 | I133: 4.136 | J133: 126.693 | K133: 80.645
A134: 2019/01/06 09:00:00 | B134: 0.005 | C134: 0.572 | D134: 0.573 | E134: 33.968 | F134: 2.693 | G134: 0 | H134: -8.374 | I134: 3.72 | J134: 128.152 | K134: 79.794
A135: 2019/01/06 10:00:00 | B135: 0.021 | C135: 0.536 | D135: 0.554 | E135: 34.142 | F135: 3.035 | G135: 0 | H135: -8.213 | I135: 3.645 | J135: 123.846 | K135: 80.329
A136: 2019/01/06 11:00:00 | B136: 0.043 | C136: 0.617 | D136: 0.657 | E136: 34.101 | F136: 3.402 | G136: 0 | H136: -7.397 | I136: 3.155 | J136: 126.605 | K136: 80.06
A137: 2019/01/06 12:00:00 | B137: 0.141 | C137: 0.651 | D137: 0.788 | E137: 33.661 | F137: 3.585 | G137: 0 | H137: -6.774 | I137: 3.053 | J137: 122.601 | K137: 79.457
A138: 2019/01/06 13:00:00 | B138: -0.002 | C138: 0.654 | D138: 0.65 | E138: 33.123 | F138: 3.555 | G138: 0 | H138: -6.377 | I138: 2.799 | J138: 118.897 | K138: 78.684
A139: 2019/01/06 14:00:00 | B139: 0.009 | C139: 0.698 | D139: 0.705 | E139: 32.265 | F139: 3.41 | G139: 0 | H139: -5.805 | I139: 2.94 | J139: 116.067 | K139: 78.538
A140: 2019/01/06 15:00:00 | B140: 0.038 | C140: 0.835 | D140: 0.871 | E140: 31.992 | F140: 3.398 | G140: 0 | H140: -5.336 | I140: 2.27 | J140: 105.508 | K140: 78.536
A141: 2019/01/06 16:00:00 | B141: 0.557 | C141: 2.973 | D141: 3.526 | E141: 30.099 | F141: 5.495 | G141: 0 | H141: -4.933 | I141: 2.563 | J141: 89.981 | K141: 79.35
A142: 2019/01/06 17:00:00 | B142: 0.533 | C142: 3.969 | D142: 4.501 | E142: 30.155 | F142: 5.343 | G142: 0 | H142: -5.004 | I142: 2.848 | J142: 98.778 | K142: 79.456
A143: 2019/01/06 18:00:00 | B143: 0.258 | C143: 1.518 | D143: 1.774 | E143: 30.627 | F143: 3.671 | G143: 0 | H143: -5.149 | I143: 2.762 | J143: 112.396 | K143: 79.677
A144: 2019/01/06 19:00:00 | B144: -0.054 | C144: 0.975 | D144: 0.919 | E144: 29.943 | F144: 6.626 | G144: 0 | H144: -4.556 | I144: 1.768 | J144: 106.808 | K144: 80.114
A145: 2019/01/06 20:00:00 | B145: -0.093 | C145: 1.164 | D145: 1.071 | E145: 28.833 | F145: 5.696 | G145: 0 | H145: -4.696 | I145: 1.356 | J145: 76.19 | K145: 80.519
A146: 2019/01/06 21:00:00 | B146: -0.14 | C146: 0.893 | D146: 0.752 | E146: 28.436 | F146: 3.324 | G146: 0 | H146: -5.352 | I146: 1.687 | J146: 51.614 | K146: 82.26
A147: 2019/01/06 22:00:00 | B147: 0.044 | C147: 0.655 | D147: 0.697 | E147: 30.769 | F147: 4.83 | G147: 0 | H147: -5.553 | I147: 1.71 | J147: 92.482 | K147: 80.464
A148: 2019/01/06 23:00:00 | B148: -0.143 | C148: 0.598 | D148: 0.454 | E148: 31.107 | F148: 4.517 | G148: 0 | H148: -5.761 | I148: 1.053 | J148: 89.493 | K148: 80.38
A149: 2019/01/07 00:00:00 | B149: -0.143 | C149: 0.702 | D149: 0.56 | E149: 30.189 | F149: 2.918 | G149: 0 | H149: -6.088 | I149: 1.479 | J149: 23.616 | K149: 82.027
A150: 2019/01/07 01:00:00 | B150: -0.186 | C150: 0.502 | D150: 0.314 | E150: 30.7 | F150: 2.83 | G150: 0 | H150: -6.168 | I150: 1.449 | J150: 354.518 | K150: 81.785
A151: 2019/01/07 02:00:00 | B151: -0.168 | C151: 0.523 | D151: 0.353 | E151: 30.198 | F151: 2.524 | G151: 0 | H151: -6.436 | I151: 2.31 | J151: 336.572 | K151: 81.121
A152: 2019/01/07 03:00:00 | B152: -0.104 | C152: 0.32 | D152: 0.216 | E152: 28.977 | F152: 2.559 | G152: 0 | H152: -7.472 | I152: 2.72 | J152: 325.655 | K152: 79.952
A153: 2019/01/07 04:00:00 | B153: -0.241 | C153: 0.181 | D153: -0.059 | E153: 29.129 | F153: 3.015 | G153: 0 | H153: -8.658 | I153: 3.279 | J153: 335.672 | K153: 78.525
A154: 2019/01/07 05:00:00 | B154: -0.189 | C154: 0.139 | D154: -0.049 | E154: 30.337 | F154: 4.157 | G154: 0 | H154: -9.597 | I154: 3.168 | J154: 313.724 | K154: 78.673
A155: 2019/01/07 06:00:00 | B155: -0.309 | C155: 0.222 | D155: -0.085 | E155: 31.688 | F155: 4.856 | G155: 0 | H155: -10.48 | I155: 3.528 | J155: 315.47 | K155: 75.855
A156: 2019/01/07 07:00:00 | B156: Z | C156: Z | D156: Z | E156: Z | F156: 4.469 | G156: 0 | H156: -11.085 | I156: 3.737 | J156: 309.48 | K156: 73.334
A157: 2019/01/07 08:00:00 | B157: -0.115 | C157: 0.79 | D157: 0.676 | E157: 30.663 | F157: 5.674 | G157: 0 | H157: -11.568 | I157: 3.322 | J157: 292.625 | K157: 74.946
A158: 2019/01/07 09:00:00 | B158: -0.212 | C158: 0.766 | D158: 0.555 | E158: 31.621 | F158: 6.169 | G158: 0 | H158: -11.97 | I158: 4.571 | J158: 290.888 | K158: 75.018
A159: 2019/01/07 10:00:00 | B159: -0.083 | C159: 0.464 | D159: 0.382 | E159: 33.387 | F159: 3.98 | G159: 0 | H159: -13.023 | I159: 4.977 | J159: 291.744 | K159: 74.775
A160: 2019/01/07 11:00:00 | B160: -0.003 | C160: 0.948 | D160: 0.946 | E160: 32.059 | F160: 7.157 | G160: 0 | H160: -14.18 | I160: 5.022 | J160: 295.02 | K160: 73.553
A161: 2019/01/07 12:00:00 | B161: 0.445 | C161: 2.049 | D161: 2.495 | E161: 28.975 | F161: 19.859 | G161: 0 | H161: -14.848 | I161: 4.948 | J161: 295.255 | K161: 70.848
A162: 2019/01/07 13:00:00 | B162: 0.459 | C162: 1.29 | D162: 1.749 | E162: 29.707 | F162: 14.658 | G162: 0 | H162: -14.708 | I162: 5.145 | J162: 297.94 | K162: 69.699
A163: 2019/01/07 14:00:00 | B163: 0.116 | C163: 0.868 | D163: 0.985 | E163: 31.873 | F163: 37.145 | G163: 0 | H163: -14.807 | I163: 4.864 | J163: 304.125 | K163: 68.137
A164: 2019/01/07 15:00:00 | B164: 0.175 | C164: 0.693 | D164: 0.867 | E164: 32.304 | F164: 15.72 | G164: 0 | H164: -15.004 | I164: 4.907 | J164: 302.431 | K164: 66.993
A165: 2019/01/07 16:00:00 | B165: 0.219 | C165: 0.736 | D165: 0.956 | E165: 32.653 | F165: 3.439 | G165: 0 | H165: -15.15 | I165: 4.65 | J165: 293.572 | K165: 67.573
A166: 2019/01/07 17:00:00 | B166: -0.113 | C166: 0.595 | D166: 0.482 | E166: 33.709 | F166: 0.435 | G166: 0 | H166: -15.042 | I166: 4.803 | J166: 290.72 | K166: 67.959
A167: 2019/01/07 18:00:00 | B167: -0.038 | C167: 0.519 | D167: 0.484 | E167: 33.708 | F167: 0.36 | G167: 0 | H167: -15.226 | I167: 4.458 | J167: 288.165 | K167: 68.012
A168: 2019/01/07 19:00:00 | B168: -0.031 | C168: 0.446 | D168: 0.416 | E168: 32.805 | F168: 0.758 | G168: 0 | H168: -15.382 | I168: 4.485 | J168: 288.408 | K168: 69.094
A169: 2019/01/07 20:00:00 | B169: 0.061 | C169: 0.415 | D169: 0.476 | E169: 32.777 | F169: 0.66 | G169: 0 | H169: -15.332 | I169: 4.113 | J169: 288.393 | K169: 71.499
A170: 2019/01/07 21:00:00 | B170: 0.1 | C170: 0.32 | D170: 0.421 | E170: 33.723 | F170: 0.726 | G170: 0 | H170: -15.292 | I170: 4.565 | J170: 293.56 | K170: 71.017
A171: 2019/01/07 22:00:00 | B171: 0.175 | C171: 0.253 | D171: 0.428 | E171: 34.718 | F171: 9.495 | G171: 0 | H171: -15.446 | I171: 4.844 | J171: 298.291 | K171: 69.117
A172: 2019/01/07 23:00:00 | B172: 0.278 | C172: 0.432 | D172: 0.711 | E172: 35.018 | F172: 26.402 | G172: 0 | H172: -15.639 | I172: 3.969 | J172: 302.821 | K172: 67.001
A173: 2019/01/08 00:00:00 | B173: 0.292 | C173: 0.391 | D173: 0.683 | E173: 34.945 | F173: 19.651 | G173: 0 | H173: -15.721 | I173: 4.509 | J173: 303.357 | K173: 64.991
A174: 2019/01/08 01:00:00 | B174: 0.276 | C174: 0.475 | D174: 0.751 | E174: 34.059 | F174: 4.665 | G174: 0 | H174: -16.26 | I174: 5.28 | J174: 307.839 | K174: 64.819
A175: 2019/01/08 02:00:00 | B175: 0.289 | C175: 1.019 | D175: 1.307 | E175: 32.748 | F175: 8.081 | G175: 0 | H175: -16.902 | I175: 5.172 | J175: 306.389 | K175: 62.157
A176: 2019/01/08 03:00:00 | B176: 0.236 | C176: 1.315 | D176: 1.551 | E176: 32.615 | F176: 5.886 | G176: 0 | H176: -17.334 | I176: 5.006 | J176: 306.531 | K176: 63.777
A177: 2019/01/08 04:00:00 | B177: 0.312 | C177: 0.704 | D177: 1.016 | E177: 33.514 | F177: 24.556 | G177: 0 | H177: -18.153 | I177: 4.723 | J177: 299.808 | K177: 64.86
A178: 2019/01/08 05:00:00 | B178: 0.27 | C178: 0.633 | D178: 0.903 | E178: 33.476 | F178: 12.99 | G178: 0 | H178: -19.094 | I178: 3.759 | J178: 289.973 | K178: 64.42
A179: 2019/01/08 06:00:00 | B179: Z | C179: Z | D179: Z | E179: Z | F179: 7.799 | G179: 0 | H179: -19.126 | I179: 3.916 | J179: 295.982 | K179: 63.353
A180: 2019/01/08 07:00:00 | B180: 0.351 | C180: 0.673 | D180: 1.024 | E180: 34.402 | F180: 20.562 | G180: 0 | H180: -19.204 | I180: 3.458 | J180: 298.205 | K180: 64.972
A181: 2019/01/08 08:00:00 | B181: 0.339 | C181: 0.848 | D181: 1.186 | E181: 35.01 | F181: 16.417 | G181: 0 | H181: -18.613 | I181: 4.031 | J181: 304.5 | K181: 65.505
A182: 2019/01/08 09:00:00 | B182: 0.375 | C182: 0.734 | D182: 1.11 | E182: 34.91 | F182: 10.544 | G182: 0 | H182: -18.089 | I182: 4.092 | J182: 301.107 | K182: 65.85
A183: 2019/01/08 10:00:00 | B183: 0.21 | C183: 0.579 | D183: 0.788 | E183: 35.298 | F183: 1.368 | G183: 0 | H183: -18.866 | I183: 3.401 | J183: 287.063 | K183: 66.216
A184: 2019/01/08 11:00:00 | B184: 0.2 | C184: 0.374 | D184: 0.573 | E184: 35.769 | F184: 0.102 | G184: 0 | H184: -18.917 | I184: 3.848 | J184: 291.098 | K184: 65.552
A185: 2019/01/08 12:00:00 | B185: 0.331 | C185: 0.425 | D185: 0.757 | E185: 36.31 | F185: 0.485 | G185: 0 | H185: -18.597 | I185: 3.392 | J185: 283.34 | K185: 64.033
A186: 2019/01/08 13:00:00 | B186: 0.585 | C186: 0.762 | D186: 1.346 | E186: 36.314 | F186: 0.503 | G186: 0 | H186: -18.365 | I186: 3.241 | J186: 275.349 | K186: 63.507
A187: 2019/01/08 14:00:00 | B187: 0.46 | C187: 0.615 | D187: 1.074 | E187: 37.004 | F187: 0.402 | G187: 0 | H187: -18.197 | I187: 3.55 | J187: 279.771 | K187: 62.192
A188: 2019/01/08 15:00:00 | B188: 0.401 | C188: 0.785 | D188: 1.186 | E188: 37.023 | F188: 0.302 | G188: 0 | H188: -18.091 | I188: 3.076 | J188: 266.5 | K188: 60.045
A189: 2019/01/08 16:00:00 | B189: 0.433 | C189: 0.777 | D189: 1.209 | E189: 37.232 | F189: 0.243 | G189: 0 | H189: -18.209 | I189: 3.083 | J189: 259.232 | K189: 58.25
A190: 2019/01/08 17:00:00 | B190: 0.351 | C190: 1.526 | D190: 1.875 | E190: 36.513 | F190: 0.482 | G190: 0 | H190: -18.736 | I190: 2.667 | J190: 257.9 | K190: 58.313
A191: 2019/01/08 18:00:00 | B191: 0.19 | C191: 2.255 | D191: 2.444 | E191: 35.127 | F191: 0.292 | G191: 0 | H191: -19.638 | I191: 1.318 | J191: 248.248 | K191: 59.908
A192: 2019/01/08 19:00:00 | B192: 0.101 | C192: 2.709 | D192: 2.808 | E192: 34.301 | F192: 0.253 | G192: 0 | H192: -20.462 | I192: 1.355 | J192: 214.467 | K192: 62.213
A193: 2019/01/08 20:00:00 | B193: 0.097 | C193: 2.175 | D193: 2.271 | E193: 34.35 | F193: 0.329 | G193: 0 | H193: -20.967 | I193: 1.413 | J193: 209.709 | K193: 64.152
A194: 2019/01/08 21:00:00 | B194: 0.134 | C194: 1.949 | D194: 2.082 | E194: 34.11 | F194: 0.42 | G194: 0 | H194: -21.449 | I194: 1.167 | J194: 201.064 | K194: 65.811
A195: 2019/01/08 22:00:00 | B195: 0.021 | C195: 2.417 | D195: 2.437 | E195: 29.936 | F195: 0.764 | G195: 0 | H195: -24.197 | I195: 1.044 | J195: 182.744 | K195: 67.621
A196: 2019/01/08 23:00:00 | B196: 0.004 | C196: 1.622 | D196: 1.625 | E196: 30.207 | F196: 0.096 | G196: 0 | H196: -24.721 | I196: 1.069 | J196: 174.122 | K196: 70.839
A197: 2019/01/09 00:00:00 | B197: -0.061 | C197: 1.239 | D197: 1.176 | E197: 31.364 | F197: 0.116 | G197: 0 | H197: -24.403 | I197: 1.274 | J197: 172.376 | K197: 68.913
A198: 2019/01/09 01:00:00 | B198: 0.192 | C198: 1.295 | D198: 1.486 | E198: 30.472 | F198: 0.149 | G198: 0 | H198: -24.414 | I198: 1.216 | J198: 174.602 | K198: 67.906
A199: 2019/01/09 02:00:00 | B199: -0.065 | C199: 1.61 | D199: 1.544 | E199: 30.118 | F199: 0.275 | G199: 0 | H199: -23.807 | I199: 0.658 | J199: 165.311 | K199: 66.898
A200: 2019/01/09 03:00:00 | B200: -0.114 | C200: 1.742 | D200: 1.628 | E200: 31.021 | F200: 0.399 | G200: 0 | H200: -22.282 | I200: 1.631 | J200: 125.767 | K200: 66.3
A201: 2019/01/09 04:00:00 | B201: -0.088 | C201: 1.337 | D201: 1.248 | E201: 31.708 | F201: 0.301 | G201: 0 | H201: -20.938 | I201: 2.371 | J201: 126.002 | K201: 65.966
... 557 more rows
